{"text_format":"1","workbook":"xlsx","n_sheets":8,"sheets":["Disclaimer","Cortec","Configurator","Documents","Master Text","BOM","LOOKUP","Date Drivers"],"not_rendered":{"charts":0,"images":0,"macros":1,"external_links":0,"defined_names":7,"comments":0,"pivot_tables":0},"unopened":[],"bounds":{"document_bytes":16777216,"sheet_cells":100000,"rows_first":2000,"rows_last":500,"rows_between":2000,"halvings":0,"cell_chars":16384,"cell_head_chars":4096},"cells_cut":0,"cells_raw":0,"read":"whole","date_system":"1900"}

{"sheet":"Disclaimer","index":0,"n_rows":6,"n_cols":2,"rows_kept":6,"cut":false,"hidden":false,"merged":[[2,1,2,9],[5,1,7,9],[3,1,4,9]]}
[]
[]
[null,"Our policy is one of continuous development. Accordingly the design of our products may change at any time. "]
[null,"Whilst every effort is made to produce up to date literature, this document should only be regarded as a guide and is intended for information purposes only."]
[]
[null,"Its contents do not constitute an offer for sale or advice on the application of any product referred to in it. We cannot be held responsible for any reliance on any decisions taken on its contents without specific advice."]

{"sheet":"Cortec","index":1,"n_rows":71,"n_cols":12,"rows_kept":71,"cut":false,"hidden":false,"merged":[[2,1,2,12],[44,7,45,7],[46,7,47,7]]}
["Information Required with Order"]
[]
["Variants","Order Number"]
["P743","Busbar Protection Peripheral Unit (60TE)","P743"]
["Vx Aux Rating"]
["24 - 54Vdc (Withdrawn)",null,null,7]
["48 - 125Vdc (40 - 100Vac)",null,null,8]
["110 - 250Vdc (100 - 240Vac)",null,null,9]
[]
["Hardware Options"]
["Without CT Input (Withdrawn)",null,null,null,0]
["With In = 1/5A CT Input",null,null,null,1]
["Redundant Ethernet PRP/Failover, 2 multi-mode fibre ports, IEC 61850-9-2 LE Sampled Analogue Values - Process Bus Model *",null,null,null,"C"]
[]
["Hardware Options"]
["Standard - None",null,null,null,null,1]
["Ethernet (100 Mbits/s) without IRIG-B",null,null,null,null,6]
["2nd Rear Port & InterMiCOM & IRIG-B (Modulated)",null,null,null,null,"E"]
["Redundant Ethernet Self-Healing Ring, 2 multi-mode fibre ports + Modulated IRIG-B",null,null,null,null,"G"]
["Redundant Ethernet Self-Healing Ring, 2 multi-mode fibre ports + Un-modulated IRIG-B ",null,null,null,null,"H"]
["Redundant Ethernet RSTP, 2 multi-mode fibre ports + Modulated IRIG-B ",null,null,null,null,"J"]
["Redundant Ethernet RSTP, 2 multi-mode fibre ports + Un-modulated IRIG-B ",null,null,null,null,"K"]
["Redundant Ethernet Dual-Homing Star, 2 multi-mode fibre ports + Modulated IRIG-B ",null,null,null,null,"L"]
["Redundant Ethernet Dual-Homing Star, 2 multi-mode fibre ports + Un-modulated IRIG-B",null,null,null,null,"M"]
["Redundant Ethernet PRP/HSR, 2 fibre ports + Modulated IRIG-B ",null,null,null,null,"N"]
["Redundant Ethernet PRP/HSR, 2 fibre ports + Unmodulated IRIG-B ",null,null,null,null,"P"]
["Redundant Ethernet PRP/HSR/RSTP/Failover, 2 multi-mode fibre ports + Modulated/Un-Modulated IRIG-B (withdrawn)",null,null,null,null,"R"]
["Redundant Ethernet PRP/HSR/RSTP/Failover, 2 copper ports RJ45 + Modulated/Un-Modulated IRIG-B (withdrawn)",null,null,null,null,"S"]
["Redundant Ethernet PRP/HSR/RSTP/Failover, 1 copper port RJ45 + 1 multi-mode fibre port + Modulated/Un-Modulated IRIG-B (withdrawn)",null,null,null,null,"T"]
["Single Ethernet 1 LC Duplex port + Universal IRIG-B + 1588",null,null,null,null,"U"]
["Redundant Ethernet PRP/HSR/RSTP/Failover 2 RJ45 + Universal IRIG-B + 1588",null,null,null,null,"W"]
["Redundant Ethernet PRP/HSR/RSTP/Failover 2 LC Duplex ports + Universal IRIG-B + 1588 ",null,null,null,null,"Y"]
[]
["Product Specific"]
["16 Relays Outputs and 24 Status Inputs**, OM1",null,null,null,null,null,"A"]
["16 Relays Outputs, 4 High Break and 16 Status Inputs, OM1",null,null,null,null,null,"B"]
["8 Relays Outputs, 4 High Break and 24 Status Inputs, OM1",null,null,null,null,null,"C"]
["8 Relays Outputs, 8 High Break and 16 Status Inputs, OM1",null,null,null,null,null,"D"]
["16 Relays Outputs and 24 Status Inputs, OM1 or OM2",null,null,null,null,null,"E"]
["16 Relays Outputs, 4 High Break and 16 Status Inputs, OM1 or OM2",null,null,null,null,null,"F"]
["8 Relays Outputs, 4 High Break and 24 Status Inputs, OM1 or OM2",null,null,null,null,null,"G"]
["8 Relays Outputs, 8 High Break and 16 Status Inputs, OM1 or OM2",null,null,null,null,null,"H"]
[]
["Protocol Options"]
["K-Bus/Courier",null,null,null,null,null,null,1]
["IEC60870-5-103 (Via KITZ274)"]
["Courier (K-Bus), IEC60870-5-103 via KITZ274 (Supplied as Courier. KITZ274 to be ordered)",null,null,null,null,null,null,6]
["Additional IEC61850 "]
[]
["Mounting"]
["Flush/Panel Mounting with Harsh Env.Coating, White Front Panel",null,null,null,null,null,null,null,"M"]
["Flush/Panel Mounting with Harsh Env. Coating, with USB Port, Black and Silver Front Panel",null,null,null,null,null,null,null,"S"]
[]
["Language"]
["Multilingual - English, French, German, Spanish",null,null,null,null,null,null,null,null,0]
["Multilingual - English, French, German, Russian",null,null,null,null,null,null,null,null,5]
[]
["Software Issue"]
["Unless specified the latest version will be delivered",null,null,null,null,null,null,null,null,null,"**"]
[]
["Customisation"]
["Default",null,null,null,null,null,null,null,null,null,null,0]
["Customer specific",null,null,null,null,null,null,null,null,null,null,"A"]
["Central Networks Version",null,null,null,null,null,null,null,null,null,null,5]
[]
["Design Suffix"]
[]
[]
[]
["* Only available with '60' software"]
["** 21 Relay Outputs and 24 Status Inputs For Suffix 'B' devices"]

{"sheet":"Configurator","index":2,"n_rows":58,"n_cols":17,"rows_kept":58,"cut":false,"hidden":false,"merged":[[2,2,2,3],[3,2,3,3],[4,2,4,3],[1,0,1,2]]}
["To enable only current variants to be offered, please specify ACTUAL or REQUIRED delivery date here"]
[null,null,null,"Format = dd/mm/yy (where d=day, m=month, y=year)"]
["OPTION",null,"INTERACTIVE CORTEC",null,1,2,"3-4",5,6,7,8,9,10,11,"12-13",14,15]
["SELECTION",null,"Generic Application - Protection and control",null,"P",7,43,{"$f":"VLOOKUP(LOOKUP!$C$16,LOOKUP!$D$16:$E$18,2)","v":9},{"$f":"VLOOKUP(LOOKUP!$C$20,LOOKUP!$D$20:$F$25,3)","v":"1"},{"$f":"VLOOKUP(LOOKUP!$H$55,LOOKUP!$H$56:$K$70,2)","v":"1"},{"$f":"VLOOKUP(LOOKUP!$H$72,LOOKUP!$H$73:$K$76,4)","v":"A"},{"$f":"VLOOKUP(LOOKUP!$H$42,LOOKUP!$G$43:$I$44,3)","v":"1"},{"$f":"VLOOKUP(LOOKUP!$H$84,LOOKUP!$H$85:$J$86,2,FALSE)","v":"S"},{"$f":"VLOOKUP(LOOKUP!$C$42,LOOKUP!$D$42:$E$46,2)","v":"0"},{"$f":"VLOOKUP(LOOKUP!B86,LOOKUP!A87:B92,2,0)","v":"91"},{"$f":"VLOOKUP(LOOKUP!$C$51,LOOKUP!$D$51:$G$53,2)","v":0},{"$f":"VLOOKUP(LOOKUP!$B$98,LOOKUP!$A$99:$C$101,2)","v":"M"}]
[null,null,"Application - Busbar Protection",null,1]
["Design Suffix",{"$f":"HLOOKUP('Date Drivers'!$C$1,'Date Drivers'!$C$2:$AP$60,47)","v":"B"},"\"M\" hardware ",null,{"$f":"HLOOKUP('Date Drivers'!$C$1,'Date Drivers'!$C$2:$AN$170,153)","v":"M"}]
[null,{"$f":"HLOOKUP('Date Drivers'!$C$1,'Date Drivers'!$C$2:$AP$60,48)","v":"K"},"\"K\" hardware",null,{"$f":"HLOOKUP('Date Drivers'!$C$1,'Date Drivers'!$C$2:$AP$60,48)","v":"K"}]
[null,{"$f":"HLOOKUP('Date Drivers'!$C$1,'Date Drivers'!$C$2:$AP$60,48)","v":"K"},"\"B\" hardware- Withdrawn",null,{"$f":"HLOOKUP('Date Drivers'!$C$1,'Date Drivers'!$C$2:$AP$60,47)","v":"B"}]
["Note : Design suffix \"A\" devices are NOT compatible (See Px40.xls)"]
["Software Version",{"$f":"HLOOKUP(LOOKUP!$A$13,'Date Drivers'!$C$2:$AM$60,42)","v":33},"Must be the same  as P741",null,{"$f":"LOOKUP!$B$87","v":"91"}]
[null,{"$f":"HLOOKUP(LOOKUP!$A$13,'Date Drivers'!$C$2:$AM$60,43)","v":40},null,null,{"$f":"LOOKUP!$B$88","v":"92"}]
[null,null,null,null,{"$f":"LOOKUP!$B$89","v":""}]
[null,null,null,null,{"$f":"LOOKUP!$B$90","v":""}]
[null,null,null,null,{"$f":"LOOKUP!$B$91","v":""}]
[null,null,null,null,{"$f":"LOOKUP!$B$92","v":""}]
[]
["Settings Files",null,"Default",null,0]
[null,null,"Customer Specific",null,"A"]
[null,null,{"$f":"LOOKUP!$G$53","v":" "},null,{"$f":"LOOKUP!F53","v":" "}]
["Vx Aux Rating"]
[null,8,"48 - 125Vdc (40 - 100Vac)",null,8]
[null,9,"110 - 250Vdc (100 - 240Vac)",null,9]
["Hardware Options"]
[null,"0",{"$f":"HLOOKUP(LOOKUP!$A$13,'Date Drivers'!$C$2:$AC$40,2)","v":"Without CT Input (Withdrawn)"},null,{"$f":"HLOOKUP('Date Drivers'!$C$1,'Date Drivers'!$C$2:$AE$40,8)","v":"*"}]
[null,null,{"$f":"HLOOKUP(LOOKUP!$A$13,'Date Drivers'!$C$2:$AC$40,3)","v":"With In = 1/5A CT Input"},null,{"$f":"HLOOKUP('Date Drivers'!$C$1,'Date Drivers'!$C$2:$AE$40,9)","v":"1"}]
[null,"1",{"$f":"HLOOKUP(LOOKUP!$A$13,'Date Drivers'!$C$2:$AB$40,4)","v":" "},null,{"$f":"HLOOKUP('Date Drivers'!$C$1,'Date Drivers'!$C$2:$AB$40,10)","v":" "}]
[null,"1",{"$f":"HLOOKUP(LOOKUP!$A$13,'Date Drivers'!$C$2:$AB$40,3)","v":" "},null,{"$f":"HLOOKUP('Date Drivers'!$C$1,'Date Drivers'!$C$2:$AB$40,9)","v":" "}]
["Communications Options",null,{"$f":"LOOKUP!J56","v":"Standard - None"},null,{"$f":"LOOKUP!K56","v":"1"}]
[null,{"$f":"HLOOKUP(LOOKUP!$A$13,'Date Drivers'!$C$2:$AB$60,20)","v":"1"},{"$f":"LOOKUP!J57","v":"2nd Rear Port & intermicom (No Irig-B) - Withdrawn"},null,{"$f":"LOOKUP!K57","v":"*"}]
[null,{"$f":"HLOOKUP(LOOKUP!$A$13,'Date Drivers'!$C$2:$AB$60,21)","v":"6"},{"$f":"LOOKUP!J58","v":"Redundant Ethernet PRP/HSR/RSTP/Failover, 2 multi-mode fibre ports + Modulated/Un-Modulated IRIG-B (withdrawn)"},null,{"$f":"LOOKUP!K58","v":"*"}]
[null,null,{"$f":"LOOKUP!J59","v":"Redundant Ethernet PRP/HSR/RSTP/Failover, 2 copper ports RJ45 + Modulated/Un-Modulated IRIG-B (withdrawn)"},null,{"$f":"LOOKUP!K59","v":"*"}]
[null,null,{"$f":"LOOKUP!J60","v":"Redundant Ethernet PRP/HSR/RSTP/Failover, 1 copper port RJ45 + 1 multi-mode fibre port + Modulated/Un-Modulated IRIG-B (withdrawn)"},null,{"$f":"LOOKUP!K60","v":"*"}]
[null,null,{"$f":"LOOKUP!J61","v":"Single Ethernet 1 LC Duplex port + Universal IRIG-B + 1588"},null,{"$f":"LOOKUP!K61","v":"U"}]
[null,null,{"$f":"LOOKUP!J62","v":"Redundant Ethernet PRP/HSR/RSTP/Failover 2 RJ45 + Universal IRIG-B + 1588"},null,{"$f":"LOOKUP!K62","v":"W"}]
[null,null,{"$f":"LOOKUP!J63","v":"Redundant Ethernet PRP/HSR/RSTP/Failover 2 LC Duplex ports + Universal IRIG-B + 1588 "},null,{"$f":"LOOKUP!K63","v":"Y"}]
[null,null,{"$f":"LOOKUP!J64","v":""},null,{"$f":"LOOKUP!K64","v":""}]
[null,null,{"$f":"LOOKUP!J65","v":""},null,{"$f":"LOOKUP!K65","v":""}]
[null,null,{"$f":"LOOKUP!J66","v":""},null,{"$f":"LOOKUP!K66","v":""}]
[null,null,{"$f":"LOOKUP!J67","v":" "},null,{"$f":"LOOKUP!K67","v":""}]
[null,null,{"$f":"LOOKUP!J68","v":" "},null,{"$f":"LOOKUP!K68","v":" "}]
[null,null,{"$f":"LOOKUP!J69","v":" "},null,{"$f":"LOOKUP!K69","v":" "}]
["Product Specific Options",null,{"$f":"LOOKUP!J73","v":"16 Relays Outputs and 24 Status Inputs, OM1"},null,{"$f":"LOOKUP!I73","v":"A"}]
[null,null,{"$f":"LOOKUP!J74","v":"16 Relays Outputs, 4 High Break and 16 Status Inputs, OM1"},null,{"$f":"LOOKUP!I74","v":"B"}]
[null,null,{"$f":"LOOKUP!J75","v":"8 Relays Outputs, 4 High Break and 24 Status Inputs, OM1"},null,{"$f":"LOOKUP!I75","v":"C"}]
[null,null,{"$f":"LOOKUP!J76","v":"8 Relays Outputs, 8 High Break and 16 Status Inputs, OM1"},null,{"$f":"LOOKUP!I76","v":"D"}]
[null,null,{"$f":"LOOKUP!J77","v":" "},null,{"$f":"LOOKUP!I77","v":"D"}]
[null,null,{"$f":"LOOKUP!J78","v":" "},null,{"$f":"LOOKUP!I78","v":"D"}]
[null,null,{"$f":"LOOKUP!J79","v":" "},null,{"$f":"LOOKUP!I79","v":"D"}]
[null,null,{"$f":"LOOKUP!J80","v":" "},null,{"$f":"LOOKUP!I80","v":"D"}]
["Protocol Options",null," ",null," "]
[null,{"$f":"HLOOKUP(LOOKUP!$A$13,'Date Drivers'!$C$2:$AB$60,33)","v":"1"},{"$f":"LOOKUP!J43","v":"Courier (K-Bus)"},null,{"$f":"LOOKUP!I43","v":"1"}]
[null,{"$f":"HLOOKUP(LOOKUP!$A$13,'Date Drivers'!$C$2:$AB$60,34)","v":"*"},{"$f":"LOOKUP!J44","v":"IEC60870-5-103 via KITZ274 (Supplied as Courier. KITZ274 to be ordered)"},null,{"$f":"LOOKUP!I44","v":"1"}]
[null,null,{"$f":"LOOKUP!J45","v":" "},null,{"$f":"LOOKUP!I45","v":" "}]
["Mounting Options",null,{"$f":"LOOKUP!$J$85","v":"Flush/Panel Mounting with Harsh Env. Coating, with USB Port, Black and Silver Front Panel"},null,{"$f":"LOOKUP!$I$85","v":"S"}]
[null,null,{"$f":"LOOKUP!$J$86","v":"Flush/Panel Mounting with Harsh Env. Coating, with USB Port, Black and Silver Front Panel"},null,{"$f":"LOOKUP!$I$86","v":"S"}]
[]
[{"$f":"HLOOKUP(LOOKUP!$A$13,'Date Drivers'!$C$2:$AM$60,49)","v":"Language"},{"$f":"HLOOKUP(LOOKUP!$A$13,'Date Drivers'!$C$2:$AM$60,55)","v":"0"},{"$f":"HLOOKUP(LOOKUP!$A$13,'Date Drivers'!$C$2:$AM$60,50)","v":"Multilingual - English, French, German, Spanish"},null,{"$f":"HLOOKUP(LOOKUP!$A$13,'Date Drivers'!$C$2:$AM$60,55)","v":"0"}]
[null,{"$f":"HLOOKUP(LOOKUP!$A$13,'Date Drivers'!$C$2:$AM$60,56)","v":"5"},{"$f":"HLOOKUP(LOOKUP!$A$13,'Date Drivers'!$C$2:$AM$60,51)","v":"Multilingual - English, French, German, Russian"},null,{"$f":"HLOOKUP(LOOKUP!$A$13,'Date Drivers'!$C$2:$AM$60,56)","v":"5"}]

{"sheet":"Documents","index":3,"n_rows":11,"n_cols":3,"rows_kept":11,"cut":false,"hidden":false,"merged":[]}
[{"$f":"CONCATENATE(Configurator!E4,Configurator!F4,Configurator!G4,Configurator!H4,Configurator!I4,Configurator!J4,Configurator!K4,Configurator!L4,Configurator!M4,Configurator!N4,Configurator!O4,Configurator!P4,Configurator!Q4)","v":"P743911A1S0910M"},null,"MASTER"]
[]
["External Connection Diagram",":",{"$f":"VLOOKUP(LOOKUP!$G$72,LOOKUP!$G$73:$L$76,6)","v":"10P74302"}]
["Outline Diagram",":","GN0040"]
[]
[]
[]
[]
[null,"A","Original derived from P741/2/3 Cortec - 01/08/05"]
[null,"B","Outline Diagram was GN0086 in error - 25/04/06"]
[null,"C","External Connection Diagram was fixed in error - 28/04/06"]

{"sheet":"Master Text","index":4,"n_rows":90,"n_cols":4,"rows_kept":90,"cut":false,"hidden":false,"merged":[[17,0,17,3],[19,0,19,3],[21,0,21,3],[3,0,3,3],[5,0,5,3],[7,0,7,3],[9,0,9,3],[11,0,11,3],[13,0,13,3],[15,0,15,3]]}
[{"$f":"CONCATENATE(Configurator!E4,Configurator!F4,Configurator!G4,Configurator!H4,Configurator!I4,Configurator!J4,Configurator!K4,Configurator!L4,Configurator!M4,Configurator!N4,Configurator!O4,Configurator!P4,Configurator!Q4)","v":"P743911A1S0910M"}]
["Busbar Protection"]
["Product Specific Options"]
[{"$f":"VLOOKUP(LOOKUP!$H$72,LOOKUP!$H$73:$J$80,3,FALSE)","v":"16 Relays Outputs and 24 Status Inputs, OM1"}]
["In Nominal current :"]
[{"$f":"VLOOKUP(LOOKUP!$H$20,LOOKUP!$I$20:$J$23,2)","v":"1/5A"}]
["Vx Nominal auxiliary voltage options :",null,{"$f":"Configurator!$H$4","v":9}]
[{"$f":"VLOOKUP($C$7,Configurator!$B$19:$C$22,2)","v":"110 - 250Vdc (100 - 240Vac)"}]
["Mounting options :",null,{"$f":"Configurator!$M$4","v":"S"}]
[{"$f":"VLOOKUP(LOOKUP!$H$84,LOOKUP!$H$85:$J$86,3,FALSE)","v":"Flush/Panel Mounting with Harsh Env. Coating, with USB Port, Black and Silver Front Panel"}]
["Hardware options :",null,{"$f":"Configurator!$I$4","v":"1"}]
[{"$f":"VLOOKUP(LOOKUP!$C$20,LOOKUP!$D$20:$K$22,8)","v":"With In = 1/5A CT Input"}]
["Communications options :",null,{"$f":"Configurator!$J$4","v":"1"}]
[{"$f":"VLOOKUP(LOOKUP!H55,LOOKUP!$H$56:$J$70,3,FALSE)","v":"Standard - None"}]
["Protocol options :",null,{"$f":"Configurator!$L$4","v":"1"}]
[{"$f":"VLOOKUP(LOOKUP!$C$34,LOOKUP!$D$34:$K$39,8)","v":"Courier (K-Bus)"}]
["Language options :",null,{"$f":"Configurator!$N$4","v":"0"}]
[{"$f":"VLOOKUP($C$17,Configurator!$B$57:$C$58,2,FALSE)","v":"Multilingual - English, French, German, Spanish"}]
["Software Version:"]
[{"$f":"Configurator!$O$4","v":"91"}]
["Settings files :"]
[{"$f":"VLOOKUP(LOOKUP!$C$51,LOOKUP!$D$51:$G$53,4)","v":"Default"}]
[]
[]
[]
[null,"A",null,"Original derived from P741/2/3 Cortec - 01/08/05"]
[null,"B",null,"Re-written to include additional Hardware & Protocol options per J Slater and H Grasset.Effective 01/08/05 - 13/07/05"]
[null,"C",null,"Features were \"24 inputs & 21 outputs\" and Protocol options 4,5 7 6 were selectable (though marked \"not available\"), until H Grasset's e-mail of 27/07/05"]
[null,"D",null,"Software was \"03\", now \"30\" (equates to PCL Software Ref A2.2) per CDN R5700 - 05/09/05"]
[null,"E",null,"10 Mbs ethernet and Protocol \"None\" removed. IEC 61850, NCIT and 100 Mbs made \"Not available!\" per H Grasset e-mail of 30/09/05 - 02/10/05"]
[null,"F",null,"DC (Delivery Commencement) date for Version 31 Software with Version K Hardware set as 01/03/06 by telephone with H Grasset-  05/10/05"]
[null,"G",null,"Retrospective change to Date Drivers entry for 05/09/05 allowing selection of \"B\" or \"J\" hardwares with \"30\" or \"31\" software until 01/03/06, when choices become \"B\" or \"K\" with \"31\" software per telecon. With H Grasset 12/12/05"]
[null,"H",null,"Language options added - 18/01/06"]
[null,"I",null,"Date Drivers amended to show revised Hardware Options per C Casadoumecq's e-mail of 28/03/06 - 28/03/06"]
[null,"J",null,"BOM amended to show parts per K Preston's e-mail of April 2006 - 24/04/06"]
[null,"K",null,"Documents and Database amended to show External Connection Diagram variable result - 28/04/06"]
[null,"L",null,"Lookup corrected on Vx value for Master Text data - 26/06/06"]
[null,"M",null,"CID PGRA-6W8GB5 released Phase II model version '32' in anticipation of software version 3.6 - 07/12/06"]
[null,"N",null,"CID CCAS-6ZXJ69 released Phase II model version '33' with software version 3.8 - 06/04/07"]
[null,"O",null,"\"Vn=100-120 Vac 50/60 Hz\" text removed from Master Text - 23/07/07"]
[null,"P",null,"IEC61850, Ethernet options & \"40\" Software released, See CID CCAS-77NHP6 04/10/07"]
[null,"Q",null,"Master Text corrections - 12/10/07"]
[null,"R",null,"Software version '41' including 2nd rear Comms options released by CID CCAS-7BYDSQ - 20/02/08"]
[null,"S",null,"Software version '42' released by CID CCAS-7DLH75 - 16/04/2008"]
[null,"T",null,"Firmware version D2.5 released for Central networks - indicated by '5' in digit 14 CCAS-7LDE47 - 4/12/2008"]
[null,"U",null,"CID CCAS-857HSZ released redundant ethernet options & '51' software - 19/05/2010"]
[null,"V",null,"References to Alstom, Areva and MiCOM removed - 6/10/2010"]
[null,"W",null,"Software versions availability set as per SCAR-8H2EGP: '33', '40' & '41' withdrawn; HEC options added - 06/06/2011"]
[null,"X",null,"Lookup corrrection on IN/VN rating - 19/07/2011"]
[null,"Y",null,"CPU3 Updates SCAR-8LBL2D & DFRO-8QZEDE - 06/02/2012"]
[null,"Z",null,"'33' software reinstated by CID ABOU-8SDLDT - 28/03/2012"]
[null,"AA",null,"'52' software released by CID ABOU-98DB59 - 08/07/2013"]
[null,"AB",null,"'60' software released by CID ABOU-98DB59 - 04/09/2014"]
[null,"AC",null,"Px40 Agile new branding, new PSU & Opto roll out, See CID YLII-9CAHT3 - 25/11/2013"]
[null,"AD",null,"Lookup error on Vn Rating corrected - 11/02/2014"]
[null,"AE",null,"HSR options added to 'Cortec' tab - 29/08/2015"]
[null,"AF",null,"HSR options released by CID AEVA-A8XJCE - 02/07/2016"]
[null,"AG",null,"Hardware option 'F' corrected to option 'E' on the Cortec sheet - 23/09/2016"]
[null,"AH",null,"Power supply option 7 withdrawn by CID005427 - 09/10/2018,  GE Publication no GER-4820"]
[null,"AI",null,"Rebranding Mounting options released CID006120 01/10/2019"]
[null,"AJ",null,"33' software withdrawn by CID006298 23/01/2020, GE Publication no GER-4873"]
[null,"AK",null,"53' software released by CID006289 - 31/01/2020"]
[null,"AL",null,"Mounting options updated for software '53' - 31/01/2020"]
[null,"AM",null,"Hardware option description corrected for Software '53' 04/03/2020"]
[null,"AN",null,"Description amended for Hardware option R,S and T CID006391 - 15/04/2020"]
[null,"AO",null,"Suffix 'B' withdrawn by CID006446 - 30/04/2020"]
[null,"AP",null,"Suffix 'B' reinstatement by CID006485 - 23/06/2020"]
[null,"AQ",null,"70' Software released by CID006494 - 02/07/2020"]
[null,"AR",null,"Correction to lookup Master Text Power supply - 23/07/2020"]
[null,"AS",null,"Rules for HMI updated for white frontpanel - CID006550 - 09/09/2020"]
[null,"AT",null,"Make 'R', 'S' & 'T' ethernet options available for P741/3 software version '51 CID006605 - 09/11/2020' "]
[null,"AU",null,"Corrected VLOOKUP to include new Design Suffix M - 24/11/2020"]
[null,"AV",null,"Look up error for Mounting options for Software 53 corrected - 09/12/2020"]
[null,"AW",null,"Hardware options G and L withdrawn by CID007038  , GE Publication GER-4855 - 30/09/2021"]
[null,"AX",null,"Hardware option M withdrawn by CID007414 - 30/09/2022, GE Publication no GER-4885"]
[null,"AY",null,"42' software withdrawn by CID007442 31/12/2022, GE Publication no GER-4912"]
[null,"AZ",null,"52' software withdrawn by CID007443 31/12/2022, GE Publication no GER-4912"]
[null,"BA",null,"30' software withdrawn by CID007847 31/07/2023, GE Publication no GER-4922"]
[null,"BB",null,"Design Suffix 'B' withdrawn by CID007640 31/07/2023, GE Publication no GER-4922"]
[null,"BC",null,"Protocol options for '70' Software Corrected - 04/08/2023"]
[null,"BD",null,"Hardware options H withdrawn by CID007976 , GE Publication GER-4947 - 30/09/2023"]
[null,"BD",null,"White front panel option withdrawn by CID008133 GE Publication no GER-4947 - 02/01/2024"]
[null,"BD",null,"60' software withdrawn by CID008203  15/02/2024, GE Publication no GER-4938"]
[null,"BE",null,"IEC 61850-9-2 LE description updated - see CID008026 - 13/05/2024"]
[null,"BF",null,"CID008406/GER-4947 obsoleted MiCOM Hardware Option E on 4th generation MiCOM models - 03/07/2024"]
[null,"BG",null,"53' software withdrawn by CID008643 12/12/2024, GE Publication no GER-4947"]
[null,"BH",null,"Hardware options R,S,T withdrawn by CID008671/GER-4978 03/03/2025"]
[null,"BI",null,"'92' software & OM2 options released - CID008363 - 03/07/2025"]
[null,"BJ",null," In/Vn Options '0' withdrawn by CID008934/GER-4964 - 23/07/2025"]
[null,"BK",null,"5th Gen Ethernet additions released by CID008970 - 22/08/2025"]

{"sheet":"BOM","index":5,"n_rows":72,"n_cols":17,"rows_kept":72,"cut":false,"hidden":true,"merged":[[0,1,0,8]]}
[null,"Requirements Key(s) / # of digit in model number",null,null,null,null,null,null,null,"Requirements Keys","Attribute Keys","NUMBER","DESCRIPTION","Slot","Qty.","Slot","Qty. Required"]
[{"$f":"CONCATENATE(Configurator!E4,Configurator!F4,Configurator!G4,Configurator!H4,Configurator!I4,Configurator!J4,Configurator!K4,Configurator!L4,Configurator!M4,Configurator!N4,Configurator!O4,Configurator!P4,Configurator!Q4)","v":"P743911A1S0910M"},5,6,7,8,9,10,"SW",15]
[null,null,null,null,null,null,{"$f":"MID($A$2,10,1)","v":"S"},null,{"$f":"MID($A$2,15,1)","v":"M"},{"$f":"CONCATENATE(I3)","v":"M"},"B","GN0173001","Final Assembly"," ",1,{"$f":"IF($J3=$K3,$N3,\"\")","v":""},{"$f":"IF($J3=$K3,$O3,\"\")","v":""}]
[null,null,{"$f":"MID($A$2,6,1)","v":"1"},null,null,null,{"$f":"MID($A$2,10,1)","v":"S"},null,{"$f":"MID($A$2,15,1)","v":"M"},{"$f":"CONCATENATE(C4,I4)","v":"1M"},"1K","GN0373001","Final Assembly"," ",1,"",""]
[null,null,{"$f":"MID($A$2,6,1)","v":"1"},null,null,null,{"$f":"MID($A$2,10,1)","v":"S"},null,{"$f":"MID($A$2,15,1)","v":"M"},{"$f":"CONCATENATE(C5,I5)","v":"1M"},"2K","GN0373001","Final Assembly"," ",1,"",""]
[null,null,{"$f":"MID($A$2,6,1)","v":"1"},null,null,null,{"$f":"MID($A$2,10,1)","v":"S"},null,{"$f":"MID($A$2,15,1)","v":"M"},{"$f":"CONCATENATE(C6,I6)","v":"1M"},"CK","GN0610001","Final Assembly"," ",1,"",""]
[null,null,null,null,null,null,{"$f":"MID($A$2,10,1)","v":"S"},{"$f":"MID($A$2,12,2)","v":"91"},{"$f":"MID($A$2,15,1)","v":"M"},{"$f":"CONCATENATE(I7)","v":"M"},"K",{"$f":"IF(H7<=\"41\",\"GN0277001\",\"GN0277005\")","v":"GN0277005"},"User Interface"," ",1,"",""]
[null,{"$f":"MID($A$2,5,1)","v":"9"},null,null,null,null,null,null,null,{"$f":"B8","v":"9"},"1","ZN0021001","PCB Assy Px40 Phase 2 PSU 24/54V","Slot 3",1,"",""]
[null,{"$f":"MID($A$2,5,1)","v":"9"},null,null,null,null,null,null,null,{"$f":"B9","v":"9"},"2","ZN0021002","PCB Assy Px40 Phase 2 PSU 48/125V","Slot 3",1,"",""]
[null,{"$f":"MID($A$2,5,1)","v":"9"},null,null,null,null,null,null,null,{"$f":"B10","v":"9"},"3","ZN0021003","PCB Assy Px40 Phase 2 PSU 110/250V","Slot 3",1,"",""]
[null,null,null,null,{"$f":"MID($A$2,8,1)","v":"A"},null,null,null,{"$f":"MID($A$2,15,1)","v":"M"},{"$f":"CONCATENATE(E11,I11)","v":"AM"},"AK","ZN0019001","Px40 Output Relay PCB","Slot 4 PL2:1, Slot 6 PL2:2",2,"",""]
[null,null,null,null,"A",null,null,null,{"$f":"MID($A$2,15,1)","v":"M"},{"$f":"CONCATENATE(E12,I12)","v":"AM"},"AK","ZN0017012","Input Opto Digital PCB (Dual Optos)","Slot 7 PL2:3, Slot 8",2,{"$f":"IF($J12=$K12,$N12,\"\")","v":""},{"$f":"IF($J12=$K12,$O12,\"\")","v":""}]
[null,null,null,null,"A",null,null,null,"M","AM","BK","ZN0019001","Px40 Output Relay PCB","Slot 4 PL2:3, Slot 6 PL2:2",2,"",""]
[null,null,null,null,"A",null,null,null,"M","AM","BK","ZN0017012","Input Opto Digital PCB (Dual Optos)","Slot 8",1,"",""]
[null,null,null,null,"A",null,null,null,"M","AM","BK","ZN0042001","Px40 High Break Relay PCB","Slot 7 PL2:1",1,"",""]
[null,null,null,null,"A",null,null,null,"M","AM","CK","ZN0019001","Px40 Output Relay PCB","Slot 4 PL2:2",1,"",""]
[null,null,null,null,"A",null,null,null,"M","AM","CK","ZN0017012","Input Opto Digital PCB (Dual Optos)","Slot 7 PL2:3, Slot 8",2,"",""]
[null,null,null,null,"A",null,null,null,"M","AM","CK","ZN0042001","Px40 High Break Relay PCB","Slot 6 PL2:1",1,"",""]
[null,null,null,null,"A",null,null,null,"M","AM","DK","ZN0019001","Px40 Output Relay PCB","Slot 4 PL2:3",1,"",""]
[null,null,null,null,"A",null,null,null,"M","AM","DK","ZN0017012","Input Opto Digital PCB (Dual Optos)","Ref 3 Slot 8",1,"",""]
[null,null,null,null,"A",null,null,null,"M","AM","DK","ZN0042001","Px40 High Break Relay PCB","Slot 6 PL2:2, Slot 7 PL2:1",2,"",""]
[null,null,{"$f":"MID($A$2,6,1)","v":"1"},null,null,null,null,null,"M",{"$f":"CONCATENATE(C22,I22)","v":"1M"},"0B","GN0010040","Busbar - Universal Inputs"," ",1,"",""]
[null,null,{"$f":"MID($A$2,6,1)","v":"1"},null,null,null,null,null,"M","1M","1B","GN0010033","Input Module"," ",1,"",""]
[null,null,"1",null,null,null,null,null,"M","1M","0K","GN0010089","Busbar - Universal Inputs"," ",1,"",""]
[null,null,"1",null,null,null,null,null,"M","1M","1K","GN0010074","Input Module"," ",1,"",""]
[null,null,{"$f":"MID($A$2,6,1)","v":"1"},null,null,null,null,null,"M","1M","0B","GN0025017","Case Assembly 60TE "," ",1,"",""]
[null,null,"1",null,null,null,null,null,"M","1M","1B","GN0025016","Case Assembly 60TE "," ",1,"",""]
[null,null,"1",null,null,null,null,null,"M","1M","0K","GN0025020","Case Assembly 60TE "," ",1,"",""]
[null,null,"1",null,null,null,null,null,"M","1M","1K","GN0025019","Case Assembly 60TE "," ",1,"",""]
[null,null,null,{"$f":"MID($A$2,7,1)","v":"1"},null,null,null,null,null,{"$f":"D30","v":"1"},"6","ZN0049001","Px40 100Mhz Ethernet Bd"," ",1,{"$f":"IF($J30=$K30,$N30,\"\")","v":""},""]
[null,null,null,{"$f":"MID($A$2,7,1)","v":"1"},null,null,null,null,null,{"$f":"D31","v":"1"},"7","ZN0025002","Assy PCB - Rear Comms Board"," ",1,{"$f":"IF($J31=$K31,$N31,\"\")","v":""},{"$f":"IF($J31=$K31,$O31,\"\")","v":""}]
[null,null,null,{"$f":"MID($A$2,7,1)","v":"1"},null,null,null,null,null,{"$f":"D32","v":"1"},"E","ZN0025002","Assy PCB - Rear Comms Board"," ",1,{"$f":"IF($J32=$K32,$N32,\"\")","v":""},{"$f":"IF($J32=$K32,$O32,\"\")","v":""}]
[null,null,null,{"$f":"MID($A$2,7,1)","v":"1"},null,null,null,null,null,{"$f":"D33","v":"1"},"G","ZN0071001","Redundant Ethernet SHR + Modulated IRIG-B "," ",1,{"$f":"IF($J33=$K33,$N33,\"\")","v":""},{"$f":"IF($J33=$K33,$O33,\"\")","v":""}]
[null,null,null,"1",null,null,null,null,null,"1","G","ZB9800801","License for VxWorks"," ",1,"",""]
[null,null,null,"1",null,null,null,null,null,"1","G","ZB9800802","Sisco License for MMS-Ease Lite"," ",1,"",""]
[null,null,null,"1",null,null,null,null,null,"1","H","ZN0071002","Redundant Ethernet SHR + Un-modulated IRIG-B"," ",1,"",""]
[null,null,null,"1",null,null,null,null,null,"1","H","ZB9800801","License for VxWorks"," ",1,"",""]
[null,null,null,"1",null,null,null,null,null,"1","H","ZB9800802","Sisco License for MMS-Ease Lite"," ",1,"",""]
[null,null,null,"1",null,null,null,null,null,"1","J","ZN0071005","Redundant Ethernet RSTP + Modulated IRIG-B "," ",1,"",""]
[null,null,null,"1",null,null,null,null,null,"1","J","ZB9800801","License for VxWorks"," ",1,"",""]
[null,null,null,"1",null,null,null,null,null,"1","J","ZB9800802","Sisco License for MMS-Ease Lite"," ",1,"",""]
[null,null,null,"1",null,null,null,null,null,"1","K","ZN0071006","Redundant Ethernet RSTP + Un-modulated IRIG-B "," ",1,"",""]
[null,null,null,"1",null,null,null,null,null,"1","K","ZB9800801","License for VxWorks"," ",1,"",""]
[null,null,null,"1",null,null,null,null,null,"1","K","ZB9800802","Sisco License for MMS-Ease Lite"," ",1,"",""]
[null,null,null,"1",null,null,null,null,null,"1","L","ZN0071007","Redundant Ethernet DHS + Modulated IRIG-B "," ",1,"",""]
[null,null,null,"1",null,null,null,null,null,"1","L","ZB9800801","License for VxWorks"," ",1,"",""]
[null,null,null,"1",null,null,null,null,null,"1","L","ZB9800802","Sisco License for MMS-Ease Lite"," ",1,"",""]
[null,null,null,"1",null,null,null,null,null,"1","M","ZN0071008","Redundant Ethernet DHS + Un-modulated IRIG-B "," ",1,"",""]
[null,null,null,"1",null,null,null,null,null,"1","M","ZB9800801","License for VxWorks"," ",1,"",""]
[null,null,null,"1",null,null,null,null,null,"1","M","ZB9800802","Sisco License for MMS-Ease Lite"," ",1,"",""]
[null,null,null,"1",null,null,null,null,null,{"$f":"D51","v":"1"},"N","ZN0071009","Px40 - REB - ST MM FIBRE MOD IRIG-B -PRP"," ",1,"",""]
[null,null,null,"1",null,null,null,null,null,"1","N","ZB9800801","License for VxWorks"," ",1,"",""]
[null,null,null,"1",null,null,null,null,null,"1","N","ZB9800802","Sisco License for MMS-Ease Lite"," ",1,"",""]
[null,null,null,"1",null,null,null,null,null,"1","P","ZN0071010","Px40 - REB ST MM FIBRE DEMOD IRIG-B -PRP"," ",1,"",""]
[null,null,null,"1",null,null,null,null,null,"1","P","ZB9800801","License for VxWorks"," ",1,"",""]
[null,null,null,"1",null,null,null,null,null,"1","P","ZB9800802","Sisco License for MMS-Ease Lite"," ",1,"",""]
[null,null,null,{"$f":"MID($A$2,7,1)","v":"1"},null,null,null,null,null,{"$f":"CONCATENATE(D57,I57)","v":"1"},"6","ZB9800801","License for VxWorks"," ",1,"",""]
[null,null,null,"1",null,null,null,null,null,{"$f":"CONCATENATE(D58,I58)","v":"1"},"6","ZB9800802","Sisco License for MMS-Ease Lite"," ",1,"",""]
[null,null,null,"1",null,null,null,null,null,{"$f":"D59","v":"1"},"1","GN2037001","Blanking plate"," ",1,{"$f":"IF($J59=$K59,$N59,\"\")","v":" "},{"$f":"IF($J59=$K59,$O59,\"\")","v":1}]
[null,null,null,"1",null,null,null,null,null,"1","1","ZB4018110","Self tap screw pan head size 4X¼\""," ",8," ",8]
[null,null,null,"1",null,null,null,null,null,"1","6","ZB4018110","Self tap screw pan head size 4X¼\""," ",10,"",""]
[null,null,null,"1",null,null,null,null,null,"1","E","ZB4018110","Self tap screw pan head size 4X¼\""," ",10,"",""]
[null,null,null,"1",null,null,null,null,null,"1","G","ZB4018110","Self tap screw pan head size 4X¼\""," ",10,"",""]
[null,null,null,"1",null,null,null,null,null,{"$f":"D64","v":"1"},"H","ZB4018110","Self tap screw pan head size 4X¼\""," ",10,"",""]
[null,null,null,"1",null,null,null,null,null,"1","J","ZB4018110","Self tap screw pan head size 4X¼\""," ",10,"",""]
[null,null,null,"1",null,null,null,null,null,"1","K","ZB4018110","Self tap screw pan head size 4X¼\""," ",10,"",""]
[null,null,null,"1",null,null,null,null,null,"1","L","ZB4018110","Self tap screw pan head size 4X¼\""," ",10,"",""]
[null,null,null,"1",null,null,null,null,null,"1","M","ZB4018110","Self tap screw pan head size 4X¼\""," ",10,"",""]
[null,null,null,"1",null,null,null,null,null,"1","N","ZB4018110","Self tap screw pan head size 4X¼\""," ",10,"",""]
[null,null,null,"1",null,null,null,null,null,"1","P","ZB4018110","Self tap screw pan head size 4X¼\""," ",10,"",""]
[null,null,null,"1",null,null,null,null,null,"1","1","ZB4018215","Self tap screw pan head size 6X¼\""," ",2," ",2]
[null,null,null,null,null,null,null,null,null,null,null,null,null,null,null,"BLANK","BLANK"]

{"sheet":"LOOKUP","index":6,"n_rows":116,"n_cols":16,"rows_kept":116,"cut":false,"hidden":true,"merged":[]}
["Design Suffix",{"$f":"HLOOKUP('Date Drivers'!$C$1,'Date Drivers'!$C$2:$AM$50,47)","v":"B"},2,1,{"$f":"HLOOKUP('Date Drivers'!$C$1,'Date Drivers'!$C$2:$AM$50,47)","v":"B"},"Phase 1",{"$f":"HLOOKUP($A$13,'Date Drivers'!$C$2:$AB$168,89)","v":"70"},{"$f":"HLOOKUP($A$13,'Date Drivers'!$C$2:$AB$168,95)","v":"70"},{"$f":"HLOOKUP($C$1,$I$7:$J$13,2)","v":"2025-08-16"},{"$f":"HLOOKUP('Date Drivers'!$C$1,'Date Drivers'!$C$2:$AB$62,60)","v":"24 Digital Inputs / 21 Output relays"},"Phase 1",1,1]
[null,{"$f":"HLOOKUP('Date Drivers'!$C$1,'Date Drivers'!$C$2:$AM$50,48)","v":"K"},null,2,{"$f":"HLOOKUP('Date Drivers'!$C$1,'Date Drivers'!$C$2:$AM$50,48)","v":"K"},"Phase 2",{"$f":"HLOOKUP($A$13,'Date Drivers'!$C$2:$AB$168,90)","v":"53- Withdrawn"},{"$f":"HLOOKUP($A$13,'Date Drivers'!$C$2:$AB$168,96)","v":"**"},{"$f":"HLOOKUP($C$1,$I$7:$J$13,3)","v":"2025-08-24"},{"$f":"HLOOKUP('Date Drivers'!$C$1,'Date Drivers'!$C$2:$AB$62,61)","v":"24 Digital Inputs / 16 Output relays"},"Phase 3",6,"*"]
[null,{"$f":"HLOOKUP('Date Drivers'!$C$1,'Date Drivers'!$C$2:$AM$50,48)","v":"K"},null,3,{"$f":"HLOOKUP('Date Drivers'!$C$1,'Date Drivers'!$C$2:$AM$50,48)","v":"K"},"Phase 2",{"$f":"HLOOKUP($A$13,'Date Drivers'!$C$2:$AB$168,91)","v":"60 - Withdrawn"},{"$f":"HLOOKUP($A$13,'Date Drivers'!$C$2:$AB$168,97)","v":"**"},{"$f":"HLOOKUP($C$1,$I$7:$J$13,4)","v":"2025-08-23"},{"$f":"HLOOKUP('Date Drivers'!$C$1,'Date Drivers'!$C$2:$AB$62,61)","v":"24 Digital Inputs / 16 Output relays"},"Phase 3",6,"*"]
[null,{"$f":"HLOOKUP('Date Drivers'!$C$1,'Date Drivers'!$C$2:$AM$50,48)","v":"K"},null,4,{"$f":"HLOOKUP('Date Drivers'!$C$1,'Date Drivers'!$C$2:$AM$50,48)","v":"K"},"Phase 2",{"$f":"HLOOKUP($A$13,'Date Drivers'!$C$2:$AB$168,69)","v":"52 - Withdrawn"},{"$f":"HLOOKUP($A$13,'Date Drivers'!$C$2:$AB$168,68)","v":"**"},{"$f":"HLOOKUP($C$1,$I$7:$J$13,5)","v":"2025-08-22"},{"$f":"HLOOKUP('Date Drivers'!$C$1,'Date Drivers'!$C$2:$AB$62,61)","v":"24 Digital Inputs / 16 Output relays"},"Phase 3",6,"*"]
[null,{"$f":"HLOOKUP('Date Drivers'!$C$1,'Date Drivers'!$C$2:$AM$50,48)","v":"K"},null,5,{"$f":"HLOOKUP('Date Drivers'!$C$1,'Date Drivers'!$C$2:$AM$50,48)","v":"K"},"Phase 2",{"$f":"HLOOKUP($A$13,'Date Drivers'!$C$2:$AB$68,67)","v":"51"},{"$f":"HLOOKUP($A$13,'Date Drivers'!$C$2:$AB$68,64)","v":"51"},{"$f":"HLOOKUP($C$1,$I$7:$J$13,6)","v":"2013-09-03"},{"$f":"HLOOKUP('Date Drivers'!$C$1,'Date Drivers'!$C$2:$AB$62,61)","v":"24 Digital Inputs / 16 Output relays"},"Phase 3",6,"*"]
[null,{"$f":"HLOOKUP('Date Drivers'!$C$1,'Date Drivers'!$C$2:$AM$50,48)","v":"K"},null,6,{"$f":"HLOOKUP('Date Drivers'!$C$1,'Date Drivers'!$C$2:$AM$50,48)","v":"K"},"Phase 2",{"$f":"HLOOKUP($A$13,'Date Drivers'!$C$2:$AB$79,66)","v":"42 - Withdrawn"},{"$f":"HLOOKUP($A$13,'Date Drivers'!$C$2:$AB$79,63)","v":"**"},{"$f":"HLOOKUP($C$1,$I$7:$J$13,7)","v":"2008-04-16"},{"$f":"HLOOKUP('Date Drivers'!$C$1,'Date Drivers'!$C$2:$AB$62,61)","v":"24 Digital Inputs / 16 Output relays"},"Phase 3",6,"*"]
[null,null,null,null,null,null,null,null,1,2]
["Software Version",{"$f":"VLOOKUP($C$1,$D$1:$G$6,4)","v":"53- Withdrawn"},1,1,"70",{"$f":"TODAY()","v":"2025-08-22"},null,null,"2005-02-28",{"$f":"TODAY()-6","v":"2025-08-16"}]
[null,{"$f":"VLOOKUP($C$1,$D$1:$H$3,5)","v":"**"},null,2,"53","2012-05-06",null,null,"2005-02-28",{"$f":"TODAY()+2","v":"2025-08-24"}]
[" ",{"$f":"VLOOKUP($C$1,$D$1:$H$3,5)","v":"**"},null,2,"60","2007-08-08",null,null,"2005-02-28",{"$f":"TODAY()+1","v":"2025-08-23"}]
[null,{"$f":"VLOOKUP($C$1,$D$1:$H$3,5)","v":"**"},null,2,"52","2006-12-06",null,null,"2005-02-28",{"$f":"TODAY()","v":"2025-08-22"}]
[null,{"$f":"VLOOKUP($C$1,$D$1:$H$3,5)","v":"**"},null,2,"51","2008-04-16",null,null,"2005-02-28","2013-09-03"]
[{"$f":"B116","v":"2025-08-25"},{"$f":"VLOOKUP($C$1,$D$1:$H$3,5)","v":"**"},null,2,"42","2008-04-16",null,null,"2005-02-28","2008-04-16"]
[]
[]
["Vx Aux Rating options",8,2,1,8]
["Key Date",9,null,2,9]
[{"$f":"$B$116","v":"2025-08-25"},"",null,"",""]
[]
["Hardware Options",{"$f":"HLOOKUP($A$13,'Date Drivers'!$C$2:$AN$60,8)","v":"*"},2,1,{"$f":"HLOOKUP($A$13,'Date Drivers'!$C$2:$AN$60,8)","v":"*"},{"$f":"HLOOKUP($A$13,'Date Drivers'!$C$2:$AN$60,11)","v":"*"},{"$f":"VLOOKUP(LOOKUP!$C$48,LOOKUP!$E$48:$F$49,2)","v":"10P74302"},{"$f":"Configurator!$I$4","v":"1"},"*","?",{"$f":"HLOOKUP(LOOKUP!$A$13,'Date Drivers'!$C$2:$AC$40,2)","v":"Without CT Input (Withdrawn)"}]
["Key Date",{"$f":"HLOOKUP($A$13,'Date Drivers'!$C$2:$AN$60,9)","v":"1"},null,2,{"$f":"HLOOKUP($A$13,'Date Drivers'!$C$2:$AN$60,9)","v":"1"},{"$f":"HLOOKUP($A$13,'Date Drivers'!$C$2:$AN$60,12)","v":"1"},null,null,"0","-",{"$f":"HLOOKUP(LOOKUP!$A$13,'Date Drivers'!$C$2:$AC$40,3)","v":"With In = 1/5A CT Input"}]
[{"$f":"$B$116","v":"2025-08-25"},{"$f":"HLOOKUP($A$13,'Date Drivers'!$C$2:$AN$60,10)","v":" "},null,3,{"$f":"HLOOKUP($A$13,'Date Drivers'!$C$2:$AN$60,10)","v":" "},{"$f":"HLOOKUP($A$13,'Date Drivers'!$C$2:$AN$60,13)","v":1},null,null,"1","1/5A",{"$f":"HLOOKUP(LOOKUP!$A$13,'Date Drivers'!$C$2:$AC$40,4)","v":"Redundant Ethernet PRP/Failover, 2 multi-mode fibre ports, IEC 61850-9-2 LE Sampled Analogue Values - Process Bus Model"}]
[null,{"$f":"HLOOKUP($A$13,'Date Drivers'!$C$2:$AN$60,11)","v":"*"},null,4,{"$f":"HLOOKUP($A$13,'Date Drivers'!$C$2:$AN$60,11)","v":"*"},null,null,null,"C","-"]
[null,{"$f":"HLOOKUP($A$13,'Date Drivers'!$C$2:$AN$60,12)","v":"1"},null,5,{"$f":"HLOOKUP($A$13,'Date Drivers'!$C$2:$AN$60,12)","v":"1"}]
[null,{"$f":"HLOOKUP($A$13,'Date Drivers'!$C$2:$AN$60,13)","v":1},null,6,{"$f":"HLOOKUP($A$13,'Date Drivers'!$C$2:$AN$60,13)","v":1}]
[null,null,null,null,{"$f":"Configurator!J4","v":"1"},{"$f":"VALUE(CONCATENATE($C$1,$C$8))","v":21},11,12,21,22]
["Communications Options",{"$f":"HLOOKUP($A$13,'Date Drivers'!$C$2:$AN$60,20)","v":"1"},1,1,{"$f":"HLOOKUP($A$13,'Date Drivers'!$C$2:$AE$60,23)","v":"1"},{"$f":"HLOOKUP($F$26,$G$26:$J$32,2)","v":"1"},{"$f":"HLOOKUP($A$13,'Date Drivers'!$C$2:$AE$60,20)","v":"1"},{"$f":"HLOOKUP($A$13,'Date Drivers'!$C$2:$AE$60,20)","v":"1"},{"$f":"HLOOKUP($A$13,'Date Drivers'!$C$2:$AE$60,20)","v":"1"},{"$f":"IF(C34=6,\"*\",\"1\")","v":"1"},{"$f":"HLOOKUP($A$36,'Date Drivers'!$C$2:$AE$40,14)","v":"Standard - None"},{"$f":"HLOOKUP($C$27,$L$42:$P$46,3)","v":"IEC60870-5-103 via KITZ274 (Supplied as Courier. KITZ274 to be ordered)"}]
["Key Date",{"$f":"HLOOKUP($A$13,'Date Drivers'!$C$2:$AE$60,21)","v":"*"},null,2,{"$f":"HLOOKUP($A$13,'Date Drivers'!$C$2:$AE$60,24)","v":"*"},{"$f":"HLOOKUP($F$26,$G$26:$J$32,3)","v":"*"},{"$f":"HLOOKUP($A$13,'Date Drivers'!$C$2:$AE$60,21)","v":"*"},{"$f":"HLOOKUP($A$13,'Date Drivers'!$C$2:$AE$60,21)","v":"*"},{"$f":"HLOOKUP($A$13,'Date Drivers'!$C$2:$AE$60,21)","v":"*"},{"$f":"HLOOKUP($A$13,'Date Drivers'!$C$2:$AE$60,21)","v":"*"},{"$f":"HLOOKUP($A$36,'Date Drivers'!$C$2:$AE$40,15)","v":"2nd Rear Port & intermicom (No Irig-B) - Withdrawn"}]
[{"$f":"$B$116","v":"2025-08-25"},{"$f":"HLOOKUP($A$13,'Date Drivers'!$C$2:$AE$60,22)","v":"*"},null,3,{"$f":"HLOOKUP($A$13,'Date Drivers'!$C$2:$AE$60,25)","v":"*"},{"$f":"HLOOKUP($F$26,$G$26:$J$32,4)","v":"*"},{"$f":"HLOOKUP($A$13,'Date Drivers'!$C$2:$AE$60,22)","v":"*"},{"$f":"HLOOKUP($A$13,'Date Drivers'!$C$2:$AE$60,22)","v":"*"},{"$f":"HLOOKUP($A$13,'Date Drivers'!$C$2:$AE$60,22)","v":"*"},{"$f":"HLOOKUP($A$13,'Date Drivers'!$C$2:$AE$60,22)","v":"*"},{"$f":"HLOOKUP($A$36,'Date Drivers'!$C$2:$AE$40,16)","v":"Redundant Ethernet PRP/HSR/RSTP/Failover, 2 multi-mode fibre ports + Modulated/Un-Modulated IRIG-B (withdrawn)"},{"$f":"HLOOKUP($C$27,$L$42:$P$46,3)","v":"IEC60870-5-103 via KITZ274 (Supplied as Courier. KITZ274 to be ordered)"}]
[null,{"$f":"HLOOKUP($A$13,'Date Drivers'!$C$2:$AE$60,23)","v":"1"},null,4,{"$f":"HLOOKUP($A$13,'Date Drivers'!$C$2:$AE$60,23)","v":"1"},{"$f":"HLOOKUP($F$26,$G$26:$J$32,5)","v":"1"},{"$f":"HLOOKUP($A$13,'Date Drivers'!$C$2:$AE$60,23)","v":"1"},{"$f":"HLOOKUP($A$13,'Date Drivers'!$C$2:$AE$60,23)","v":"1"},{"$f":"HLOOKUP($A$13,'Date Drivers'!$C$2:$AE$60,23)","v":"1"},{"$f":"HLOOKUP($A$13,'Date Drivers'!$C$2:$AE$60,23)","v":"1"}]
[null,{"$f":"HLOOKUP($A$13,'Date Drivers'!$C$2:$AE$60,24)","v":"*"},null,5,{"$f":"HLOOKUP($A$13,'Date Drivers'!$C$2:$AE$60,24)","v":"*"},{"$f":"HLOOKUP($F$26,$G$26:$J$32,6)","v":"*"},{"$f":"HLOOKUP($A$13,'Date Drivers'!$C$2:$AE$60,24)","v":"*"},{"$f":"HLOOKUP($A$13,'Date Drivers'!$C$2:$AE$60,24)","v":"*"},{"$f":"HLOOKUP($A$13,'Date Drivers'!$C$2:$AE$60,24)","v":"*"},{"$f":"HLOOKUP($A$13,'Date Drivers'!$C$2:$AE$60,24)","v":"*"}]
[null,{"$f":"HLOOKUP($A$13,'Date Drivers'!$C$2:$AE$60,25)","v":"*"},null,6,{"$f":"HLOOKUP($A$13,'Date Drivers'!$C$2:$AE$60,25)","v":"*"},{"$f":"HLOOKUP($F$26,$G$26:$J$32,7)","v":"*"},{"$f":"HLOOKUP($A$13,'Date Drivers'!$C$2:$AE$60,25)","v":"*"},{"$f":"HLOOKUP($A$13,'Date Drivers'!$C$2:$AE$60,25)","v":"*"},{"$f":"HLOOKUP($A$13,'Date Drivers'!$C$2:$AE$60,25)","v":"*"},{"$f":"HLOOKUP($A$13,'Date Drivers'!$C$2:$AE$60,25)","v":"*"}]
[null,null,{"$f":"Configurator!$J$4","v":"1"},null,null,{"$f":"VALUE(CONCATENATE($C$1,$C$8))","v":21},11,12,21,22]
["Protocol/Communications options",{"$f":"HLOOKUP($A$13,'Date Drivers'!$C$2:$AN$60,33)","v":"1"},1,1,{"$f":"HLOOKUP($A$13,'Date Drivers'!$C$2:$AN$60,33)","v":"1"},{"$f":"HLOOKUP($F$33,$G$33:$J$40,2)","v":"1"},{"$f":"HLOOKUP($A$13,'Date Drivers'!$C$2:$AE$60,33)","v":"1"},{"$f":"HLOOKUP($A$13,'Date Drivers'!$C$2:$AE$60,33)","v":"1"},{"$f":"HLOOKUP($A$13,'Date Drivers'!$C$2:$AE$60,33)","v":"1"},{"$f":"HLOOKUP($E$26,$L$42:$P$46,4)","v":"1"},{"$f":"HLOOKUP($A$36,'Date Drivers'!$C$2:$AE$40,26)","v":"Courier (K-Bus)"}]
["Key Date",{"$f":"HLOOKUP($A$13,'Date Drivers'!$C$2:$AN$60,34)","v":"*"},null,2,{"$f":"HLOOKUP($A$13,'Date Drivers'!$C$2:$AN$60,34)","v":"*"},{"$f":"HLOOKUP($F$33,$G$33:$J$40,3)","v":"1"},{"$f":"HLOOKUP($A$13,'Date Drivers'!$C$2:$AE$60,35)","v":"1"},{"$f":"HLOOKUP($A$13,'Date Drivers'!$C$2:$AE$60,35)","v":"1"},{"$f":"HLOOKUP($A$13,'Date Drivers'!$C$2:$AE$60,35)","v":"1"},{"$f":"HLOOKUP($E$26,$L$42:$P$46,5)","v":"1"},{"$f":"HLOOKUP($A$36,'Date Drivers'!$C$2:$AE$40,28)","v":"IEC60870-5-103 via KITZ274 (Supplied as Courier. KITZ274 to be ordered)"}]
[{"$f":"$B$116","v":"2025-08-25"},{"$f":"HLOOKUP($A$13,'Date Drivers'!$C$2:$AN$60,35)","v":"1"},null,3,{"$f":"HLOOKUP($A$13,'Date Drivers'!$C$2:$AN$60,35)","v":"1"},{"$f":"HLOOKUP($F$33,$G$33:$J$40,4)","v":" "}," "," "," ",{"$f":"HLOOKUP($C$33,$L$42:$P$47,6)","v":" "},{"$f":"HLOOKUP($E$26,$L$42:$P$46,2)","v":" "}]
[null,{"$f":"HLOOKUP($A$13,'Date Drivers'!$C$2:$AN$60,36)","v":"*"},null,4,{"$f":"HLOOKUP($A$13,'Date Drivers'!$C$2:$AN$60,36)","v":"*"},{"$f":"HLOOKUP($F$33,$G$33:$J$40,5)","v":"*"},{"$f":"HLOOKUP($A$13,'Date Drivers'!$C$2:$AE$60,36)","v":"*"},{"$f":"HLOOKUP($A$13,'Date Drivers'!$C$2:$AE$60,36)","v":"*"},{"$f":"HLOOKUP($A$13,'Date Drivers'!$C$2:$AE$60,36)","v":"*"},{"$f":"VLOOKUP($C$1,$D$1:$M$3,10)","v":"*"},{"$f":"HLOOKUP($A$36,'Date Drivers'!$C$2:$AE$40,17)","v":" "}]
[null,{"$f":"HLOOKUP($A$13,'Date Drivers'!$C$2:$AN$60,37)","v":"*"},null,5,{"$f":"HLOOKUP($A$13,'Date Drivers'!$C$2:$AN$60,37)","v":"*"},{"$f":"HLOOKUP($F$33,$G$33:$J$40,6)","v":"*"},{"$f":"HLOOKUP($A$13,'Date Drivers'!$C$2:$AE$60,37)","v":"*"},{"$f":"HLOOKUP($A$13,'Date Drivers'!$C$2:$AE$60,37)","v":"*"},{"$f":"HLOOKUP($A$13,'Date Drivers'!$C$2:$AE$60,37)","v":"*"},{"$f":"VLOOKUP($C$1,$D$1:$M$3,10)","v":"*"},{"$f":"HLOOKUP($A$36,'Date Drivers'!$C$2:$AE$40,18)","v":" "}]
[null,{"$f":"HLOOKUP($A$13,'Date Drivers'!$C$2:$AN$60,38)","v":"6"},null,6,{"$f":"HLOOKUP($A$13,'Date Drivers'!$C$2:$AN$60,38)","v":"6"},{"$f":"HLOOKUP($F$33,$G$33:$J$40,7)","v":"6"},{"$f":"HLOOKUP($A$13,'Date Drivers'!$C$2:$AE$60,38)","v":"6"},{"$f":"HLOOKUP($A$13,'Date Drivers'!$C$2:$AE$60,38)","v":"6"},{"$f":"HLOOKUP($A$13,'Date Drivers'!$C$2:$AE$60,38)","v":"6"},null,{"$f":"HLOOKUP($A$36,'Date Drivers'!$C$2:$AE$40,19)","v":" "}]
[null,{"$f":"HLOOKUP($A$13,'Date Drivers'!$C$2:$AN$60,39)","v":"*"},null,7,{"$f":"HLOOKUP($A$13,'Date Drivers'!$C$2:$AN$60,39)","v":"*"},{"$f":"HLOOKUP($F$33,$G$33:$J$40,8)","v":"*"},{"$f":"HLOOKUP($A$13,'Date Drivers'!$C$2:$AE$60,39)","v":"*"},{"$f":"HLOOKUP($A$13,'Date Drivers'!$C$2:$AE$60,39)","v":"*"},{"$f":"HLOOKUP($A$13,'Date Drivers'!$C$2:$AE$60,39)","v":"*"},{"$f":"VLOOKUP($C$1,$D$1:$M$3,10)","v":"*"}," "]
[]
["Language Options",{"$f":"HLOOKUP($A$13,'Date Drivers'!$C$2:$AN$60,55)","v":"0"},1,1,{"$f":"HLOOKUP($A$13,'Date Drivers'!$C$2:$AN$60,55)","v":"0"},null,{"$f":"Configurator!$J$4","v":"1"},1,null,null,null,"0",1,"1","6","7"]
["Key Date",{"$f":"HLOOKUP($A$13,'Date Drivers'!$C$2:$AN$60,56)","v":"5"},null,2,{"$f":"HLOOKUP($A$13,'Date Drivers'!$C$2:$AN$60,56)","v":"5"},null,1,null,{"$f":"HLOOKUP($E$26,$L$49:$P$54,4)","v":"1"},{"$f":"HLOOKUP($A$36,'Date Drivers'!$C$2:$AE$40,26)","v":"Courier (K-Bus)"},null," "," "," ",{"$f":"HLOOKUP($A$36,'Date Drivers'!$C$2:$AB$40,31)","v":"Additional IEC61850"}," "]
[{"$f":"$B$116","v":"2025-08-25"},{"$f":"HLOOKUP($A$13,'Date Drivers'!$C$2:$AN$60,57)","v":"5"},null,3,{"$f":"HLOOKUP($A$13,'Date Drivers'!$C$2:$AN$60,57)","v":"5"},null,2,null,{"$f":"HLOOKUP($E$26,$L$49:$P$54,5)","v":"1"},{"$f":"HLOOKUP($A$36,'Date Drivers'!$C$2:$AE$40,28)","v":"IEC60870-5-103 via KITZ274 (Supplied as Courier. KITZ274 to be ordered)"},null,{"$f":"HLOOKUP($A$36,'Date Drivers'!$C$2:$AB$40,28)","v":"IEC60870-5-103 via KITZ274 (Supplied as Courier. KITZ274 to be ordered)"},{"$f":"HLOOKUP($A$36,'Date Drivers'!$C$2:$AB$40,28)","v":"IEC60870-5-103 via KITZ274 (Supplied as Courier. KITZ274 to be ordered)"},{"$f":"HLOOKUP($A$36,'Date Drivers'!$C$2:$AB$40,28)","v":"IEC60870-5-103 via KITZ274 (Supplied as Courier. KITZ274 to be ordered)"}," ",{"$f":"HLOOKUP($A$36,'Date Drivers'!$C$2:$AB$40,28)","v":"IEC60870-5-103 via KITZ274 (Supplied as Courier. KITZ274 to be ordered)"}]
[null,{"$f":"HLOOKUP($A$13,'Date Drivers'!$C$2:$AN$60,58)","v":"5"},null,4,{"$f":"HLOOKUP($A$13,'Date Drivers'!$C$2:$AN$60,58)","v":"5"},null,3,null,{"$f":"HLOOKUP($E$26,$L$49:$P$54,6)","v":" "},{"$f":"HLOOKUP($G$42,$L$49:$P$54,2)","v":" "},null,{"$f":"HLOOKUP($A$36,'Date Drivers'!$F$2:$AB$40,33)","v":"1"},{"$f":"HLOOKUP($A$36,'Date Drivers'!$F$2:$AB$40,33)","v":"1"},{"$f":"HLOOKUP($A$36,'Date Drivers'!$F$2:$AB$40,33)","v":"1"},{"$f":"HLOOKUP($A$36,'Date Drivers'!$C$2:$AB$40,38)","v":"6"},{"$f":"HLOOKUP($A$36,'Date Drivers'!$F$2:$AB$40,33)","v":"1"}]
[null,{"$f":"HLOOKUP($A$13,'Date Drivers'!$C$2:$AN$60,59)","v":"5"},null,5,{"$f":"HLOOKUP($A$13,'Date Drivers'!$C$2:$AN$60,59)","v":"5"},null,null,null,null,null,null,{"$f":"HLOOKUP($A$36,'Date Drivers'!$F$2:$AB$40,35)","v":"1"},{"$f":"HLOOKUP($A$36,'Date Drivers'!$F$2:$AB$40,35)","v":"1"},{"$f":"HLOOKUP($A$36,'Date Drivers'!$F$2:$AB$40,35)","v":"1"},"6",{"$f":"HLOOKUP($A$36,'Date Drivers'!$F$2:$AB$40,35)","v":"1"}]
[null,null,null,null,null,null,null,null,null,null,null," "," "," ","6"," "]
["External Connection Diagram",null,{"$f":"Configurator!$Q$4","v":"M"},null,"B","10P74301"]
[null,null,null,null,"K","10P74302",null,null,null,null,null,"1","6","E","G","Z"]
[null,null,null,null,null,null,null,null,null,null,null," ",{"$f":"HLOOKUP($A$36,'Date Drivers'!$C$2:$AB$40,31)","v":"Additional IEC61850"}," ",{"$f":"HLOOKUP($A$36,'Date Drivers'!$C$2:$AB$40,31)","v":"Additional IEC61850"}," "]
["Settings Files",null,1,1,0,0,"Default",null,null,null,null,{"$f":"HLOOKUP($A$36,'Date Drivers'!$C$2:$AB$40,28)","v":"IEC60870-5-103 via KITZ274 (Supplied as Courier. KITZ274 to be ordered)"}," ",{"$f":"HLOOKUP($A$36,'Date Drivers'!$C$2:$AB$40,28)","v":"IEC60870-5-103 via KITZ274 (Supplied as Courier. KITZ274 to be ordered)"}," ",{"$f":"HLOOKUP($A$36,'Date Drivers'!$C$2:$AB$40,28)","v":"IEC60870-5-103 via KITZ274 (Supplied as Courier. KITZ274 to be ordered)"}]
["Key Date",null,null,2,"A","A","Customer Specific",null,null,null,null,{"$f":"HLOOKUP($A$36,'Date Drivers'!$F$2:$AB$40,33)","v":"1"},{"$f":"HLOOKUP($A$36,'Date Drivers'!$C$2:$AB$40,38)","v":"6"},{"$f":"HLOOKUP($A$36,'Date Drivers'!$F$2:$AB$40,33)","v":"1"},{"$f":"HLOOKUP($A$36,'Date Drivers'!$C$2:$AB$40,38)","v":"6"},{"$f":"HLOOKUP($A$36,'Date Drivers'!$F$2:$AB$40,33)","v":"1"}]
[{"$f":"$B$116","v":"2025-08-25"},null,null,3,{"$f":"HLOOKUP($A$13,'Date Drivers'!$C$2:$AB$80,72)","v":"A"},{"$f":"HLOOKUP($A$13,'Date Drivers'!$C$2:$AB80,71)","v":" "},{"$f":"HLOOKUP($A$13,'Date Drivers'!$C$2:$AB$80,70)","v":" "},null,null,null,null,{"$f":"HLOOKUP($A$36,'Date Drivers'!$F$2:$AB$40,35)","v":"1"},"6",{"$f":"HLOOKUP($A$36,'Date Drivers'!$F$2:$AB$40,35)","v":"1"},"6",{"$f":"HLOOKUP($A$36,'Date Drivers'!$F$2:$AB$40,35)","v":"1"}]
[null,null,null,null,null,null,null,null,null,null,null," ","6"," ","6"," "]
[null,null,null,null,null,null,null,1]
[null,null,null,null,null,null,null,1,{"$f":"HLOOKUP($A$13,'Date Drivers'!$C$2:$AE$60,20)","v":"1"},{"$f":"HLOOKUP($A$36,'Date Drivers'!$C$2:$AE$40,14)","v":"Standard - None"},{"$f":"HLOOKUP($A$13,'Date Drivers'!$C$2:$AE$60,20)","v":"1"}]
[null,null,null,null,null,null,null,2,{"$f":"HLOOKUP($A$13,'Date Drivers'!$C$2:$AE$60,21)","v":"*"},{"$f":"HLOOKUP($A$36,'Date Drivers'!$C$2:$AE$40,15)","v":"2nd Rear Port & intermicom (No Irig-B) - Withdrawn"},{"$f":"HLOOKUP($A$13,'Date Drivers'!$C$2:$AE$60,21)","v":"*"}]
[null,null,null,null,null,null,null,3,{"$f":"HLOOKUP($A$13,'Date Drivers'!$C$2:$AE$60,22)","v":"*"},{"$f":"HLOOKUP($A$36,'Date Drivers'!$C$2:$AE$40,16)","v":"Redundant Ethernet PRP/HSR/RSTP/Failover, 2 multi-mode fibre ports + Modulated/Un-Modulated IRIG-B (withdrawn)"},{"$f":"HLOOKUP($A$13,'Date Drivers'!$C$2:$AE$60,22)","v":"*"}]
[null,null,null,null,null,null,null,4,{"$f":"HLOOKUP($A$53,'Date Drivers'!$C$2:$AE$137,125)","v":"*"},{"$f":"HLOOKUP($A$53,'Date Drivers'!$C$2:$AE$137,101)","v":"Redundant Ethernet PRP/HSR/RSTP/Failover, 2 copper ports RJ45 + Modulated/Un-Modulated IRIG-B (withdrawn)"},{"$f":"HLOOKUP($A$53,'Date Drivers'!$C$2:$AE$137,125)","v":"*"}]
[null,null,null,null,null,null,null,5,{"$f":"HLOOKUP($A$53,'Date Drivers'!$C$2:$AE$137,126)","v":"*"},{"$f":"HLOOKUP($A$53,'Date Drivers'!$C$2:$AE$137,102)","v":"Redundant Ethernet PRP/HSR/RSTP/Failover, 1 copper port RJ45 + 1 multi-mode fibre port + Modulated/Un-Modulated IRIG-B (withdrawn)"},{"$f":"HLOOKUP($A$53,'Date Drivers'!$C$2:$AE$137,126)","v":"*"}]
[null,null,null,null,null,null,null,6,{"$f":"HLOOKUP($A$53,'Date Drivers'!$C$2:$AE$137,127)","v":"U"},{"$f":"HLOOKUP($A$53,'Date Drivers'!$C$2:$AE$137,103)","v":"Single Ethernet 1 LC Duplex port + Universal IRIG-B + 1588"},{"$f":"HLOOKUP($A$53,'Date Drivers'!$C$2:$AE$137,127)","v":"U"}]
[null,null,null,null,null,null,null,7,{"$f":"HLOOKUP($A$53,'Date Drivers'!$C$2:$AE$137,128)","v":"W"},{"$f":"HLOOKUP($A$53,'Date Drivers'!$C$2:$AE$137,104)","v":"Redundant Ethernet PRP/HSR/RSTP/Failover 2 RJ45 + Universal IRIG-B + 1588"},{"$f":"HLOOKUP($A$53,'Date Drivers'!$C$2:$AE$137,128)","v":"W"}]
[null,null,null,null,null,null,null,8,{"$f":"HLOOKUP($A$53,'Date Drivers'!$C$2:$AE$137,129)","v":"Y"},{"$f":"HLOOKUP($A$53,'Date Drivers'!$C$2:$AE$137,105)","v":"Redundant Ethernet PRP/HSR/RSTP/Failover 2 LC Duplex ports + Universal IRIG-B + 1588 "},{"$f":"HLOOKUP($A$53,'Date Drivers'!$C$2:$AE$137,129)","v":"Y"}]
[null,null,null,null,null,null,null,9,{"$f":"HLOOKUP($A$53,'Date Drivers'!$C$2:$AE$137,130)","v":""},{"$f":"HLOOKUP($A$53,'Date Drivers'!$C$2:$AE$137,106)","v":""},{"$f":"HLOOKUP($A$53,'Date Drivers'!$C$2:$AE$137,130)","v":""}]
[null,null,null,null,null,null,null,10,{"$f":"HLOOKUP($A$53,'Date Drivers'!$C$2:$AE$137,131)","v":""},{"$f":"HLOOKUP($A$53,'Date Drivers'!$C$2:$AE$137,107)","v":""},{"$f":"HLOOKUP($A$53,'Date Drivers'!$C$2:$AE$137,131)","v":""}]
[null,null,null,null,null,null,null,11,{"$f":"HLOOKUP($A$53,'Date Drivers'!$C$2:$AE$137,132)","v":""},{"$f":"HLOOKUP($A$53,'Date Drivers'!$C$2:$AE$137,108)","v":""},{"$f":"HLOOKUP($A$53,'Date Drivers'!$C$2:$AE$137,132)","v":""}]
[null,null,null,null,null,null,null,12,{"$f":"HLOOKUP($A$53,'Date Drivers'!$C$2:$AE$137,133)","v":""},{"$f":"HLOOKUP($A$53,'Date Drivers'!$C$2:$AE$137,109)","v":" "},{"$f":"HLOOKUP($A$53,'Date Drivers'!$C$2:$AE$137,133)","v":""}]
[null,null,null,null,null,null,null,13,{"$f":"HLOOKUP($A$53,'Date Drivers'!$C$2:$AE$137,134)","v":" "},{"$f":"HLOOKUP($A$53,'Date Drivers'!$C$2:$AE$137,110)","v":" "},{"$f":"HLOOKUP($A$53,'Date Drivers'!$C$2:$AE$137,134)","v":" "}]
[null,null,null,null,null,null,null,14,{"$f":"HLOOKUP($A$53,'Date Drivers'!$C$2:$AE$137,135)","v":" "},{"$f":"HLOOKUP($A$53,'Date Drivers'!$C$2:$AE$137,111)","v":" "},{"$f":"HLOOKUP($A$53,'Date Drivers'!$C$2:$AE$137,135)","v":" "}]
[]
[]
[null,null,null,null,null,null,{"$f":"Configurator!K4","v":"A"},1,null,null,null,1,"0","C"]
["Product Specific Options",null,null,null,null,null,"A",1,{"$f":"HLOOKUP($A$75,'Date Drivers'!$C$2:$AE$89,81)","v":"A"},{"$f":"HLOOKUP($A$75,'Date Drivers'!$C$2:$AE$89,73)","v":"16 Relays Outputs and 24 Status Inputs, OM1"},{"$f":"HLOOKUP($A$75,'Date Drivers'!$C$2:$AE$89,81)","v":"A"},{"$f":"HLOOKUP($H$20,$M$72:$N$76,2)","v":"10P74302"},{"$f":"VLOOKUP(LOOKUP!$C$48,LOOKUP!$E$48:$F$49,2)","v":"10P74302"},"10P74306"]
["Key Date",null,null,null,null,null,"B",2,{"$f":"HLOOKUP($A$75,'Date Drivers'!$C$2:$AE$89,82)","v":"B"},{"$f":"HLOOKUP($A$75,'Date Drivers'!$C$2:$AE$89,74)","v":"16 Relays Outputs, 4 High Break and 16 Status Inputs, OM1"},{"$f":"HLOOKUP($A$75,'Date Drivers'!$C$2:$AE$89,82)","v":"B"},{"$f":"HLOOKUP($H$20,$M$72:$N$76,3)","v":"10P74303"},"10P74303","10P74307"]
[{"$f":"$B$116","v":"2025-08-25"},null,null,null,null,null,"C",3,{"$f":"HLOOKUP($A$75,'Date Drivers'!$C$2:$AE$89,83)","v":"C"},{"$f":"HLOOKUP($A$75,'Date Drivers'!$C$2:$AE$89,75)","v":"8 Relays Outputs, 4 High Break and 24 Status Inputs, OM1"},{"$f":"HLOOKUP($A$75,'Date Drivers'!$C$2:$AE$89,83)","v":"C"},{"$f":"HLOOKUP($H$20,$M$72:$N$76,4)","v":"10P74304"},"10P74304","10P74308"]
[null,null,null,null,null,null,"D",4,{"$f":"HLOOKUP($A$75,'Date Drivers'!$C$2:$AE$89,84)","v":"D"},{"$f":"HLOOKUP($A$75,'Date Drivers'!$C$2:$AE$89,76)","v":"8 Relays Outputs, 8 High Break and 16 Status Inputs, OM1"},{"$f":"HLOOKUP($A$75,'Date Drivers'!$C$2:$AE$89,84)","v":"D"},{"$f":"HLOOKUP($H$20,$M$72:$N$76,5)","v":"10P74305"},"10P74305","10P74309"]
[null,null,null,null,null,null,"E",5,{"$f":"HLOOKUP($A$75,'Date Drivers'!$C$2:$AE$89,85)","v":"D"},{"$f":"HLOOKUP($A$75,'Date Drivers'!$C$2:$AE$89,77)","v":" "},{"$f":"HLOOKUP($A$75,'Date Drivers'!$C$2:$AE$89,85)","v":"D"}]
[null,null,null,null,null,null,"F",6,{"$f":"HLOOKUP($A$75,'Date Drivers'!$C$2:$AE$89,86)","v":"D"},{"$f":"HLOOKUP($A$75,'Date Drivers'!$C$2:$AE$89,78)","v":" "},{"$f":"HLOOKUP($A$75,'Date Drivers'!$C$2:$AE$89,86)","v":"D"}]
[null,null,null,null,null,null,"G",7,{"$f":"HLOOKUP($A$75,'Date Drivers'!$C$2:$AE$89,87)","v":"D"},{"$f":"HLOOKUP($A$75,'Date Drivers'!$C$2:$AE$89,79)","v":" "},{"$f":"HLOOKUP($A$75,'Date Drivers'!$C$2:$AE$89,87)","v":"D"}]
["Mounting Options",null,null,null,null,null,"H",8,{"$f":"HLOOKUP($A$75,'Date Drivers'!$C$2:$AE$89,88)","v":"D"},{"$f":"HLOOKUP($A$75,'Date Drivers'!$C$2:$AE$89,80)","v":" "},{"$f":"HLOOKUP($A$75,'Date Drivers'!$C$2:$AE$89,88)","v":"D"}]
["Key Date"]
[{"$f":"$B$116","v":"2025-08-25"}]
[]
["SOFTWARE",null,null,null,null,null,null,2]
[null,null,null,null,null,null,null,1,{"$f":"HLOOKUP($A$82,'Date Drivers'!$C$2:$AE$189,139)","v":"S"},{"$f":"HLOOKUP($A$82,'Date Drivers'!$C$2:$AE$189,137)","v":"Flush/Panel Mounting with Harsh Env. Coating, with USB Port, Black and Silver Front Panel"}]
[null,1,null,null,null,null,null,2,{"$f":"HLOOKUP($A$82,'Date Drivers'!$C$2:$AE$189,140)","v":"S"},{"$f":"HLOOKUP($A$82,'Date Drivers'!$C$2:$AE$189,138)","v":"Flush/Panel Mounting with Harsh Env. Coating, with USB Port, Black and Silver Front Panel"}]
[1,{"$f":"VLOOKUP($B$98,$A$99:$P$101,5)","v":"91"},{"$f":"VLOOKUP($B$98,$A$99:$P$101,6)","v":"91"}]
[2,{"$f":"VLOOKUP($B$98,$A$99:$P$101,7)","v":"92"},{"$f":"VLOOKUP($B$98,$A$99:$P$101,8)","v":"92 - Special for RTE and DEWA only"}]
[3,{"$f":"VLOOKUP($B$98,$A$99:$P$101,9)","v":""},{"$f":"VLOOKUP($B$98,$A$99:$P$101,10)","v":""}]
[4,{"$f":"VLOOKUP($B$98,$A$99:$P$101,11)","v":""},{"$f":"VLOOKUP($B$98,$A$99:$P$101,12)","v":""}]
[5,{"$f":"VLOOKUP($B$98,$A$99:$P$101,13)","v":""},{"$f":"VLOOKUP($B$98,$A$99:$P$101,14)","v":""}]
[6,{"$f":"VLOOKUP($B$98,$A$99:$P$101,15)","v":""},{"$f":"VLOOKUP($B$98,$A$99:$P$101,16)","v":""}]
[]
[]
[]
[]
["DESIGN SUFFIX"]
[null,1]
[1,"M","M",{"$f":"TODAY()+3","v":"2025-08-25"},{"$f":"HLOOKUP($D$99,'Date Drivers'!$C$2:$AE$168,95)","v":"91"},{"$f":"HLOOKUP($D$99,'Date Drivers'!$C$2:$AE$168,89)","v":"91"},{"$f":"HLOOKUP($D$99,'Date Drivers'!$C$2:$AE$168,96)","v":"92"},{"$f":"HLOOKUP($D$99,'Date Drivers'!$C$2:$AE$168,90)","v":"92 - Special for RTE and DEWA only"},"","","","","","","",""]
[2,"K","K","2020-11-24",{"$f":"HLOOKUP($D$100,'Date Drivers'!$C$2:$AB$168,95)","v":"70"},{"$f":"HLOOKUP($D$100,'Date Drivers'!$C$2:$AB$168,89)","v":"70"},{"$f":"HLOOKUP($D$100,'Date Drivers'!$C$2:$AB$168,96)","v":"**"},{"$f":"HLOOKUP($D$100,'Date Drivers'!$C$2:$AB$168,90)","v":"53- Withdrawn"},{"$f":"HLOOKUP($D$100,'Date Drivers'!$C$2:$AB$168,97)","v":"**"},{"$f":"HLOOKUP($D$100,'Date Drivers'!$C$2:$AB$168,91)","v":"60 - Withdrawn"},{"$f":"HLOOKUP($D$100,'Date Drivers'!$C$2:$AB$168,68)","v":"**"},{"$f":"HLOOKUP($D$100,'Date Drivers'!$C$2:$AB$168,69)","v":"52 - Withdrawn"},{"$f":"HLOOKUP($D$100,'Date Drivers'!$C$2:$AB$68,64)","v":"51"},{"$f":"HLOOKUP($D$100,'Date Drivers'!$C$2:$AB$68,67)","v":"51"},{"$f":"HLOOKUP($D$100,'Date Drivers'!$C$2:$AB$79,63)","v":"**"},{"$f":"HLOOKUP($D$100,'Date Drivers'!$C$2:$AB$79,66)","v":"42 - Withdrawn"}]
[3,"**","**","2005-02-28",{"$f":"HLOOKUP($D$101,'Date Drivers'!$C$2:$AB$168,95)","v":"*"},{"$f":"HLOOKUP($D$101,'Date Drivers'!$C$2:$AB$168,95)","v":"*"},"","","","","","","","","",""]
[]
[]
["**",{"$f":"VLOOKUP($B$70,$A$71:$P$72,16)","v":{"$error":"#N/A"}}]
["92",{"$f":"TODAY()+4","v":"2025-08-26"}]
["91",{"$f":"TODAY()+3","v":"2025-08-25"},"M"]
["70",{"$f":"TODAY()-6","v":"2025-08-16"},"K"]
["53",{"$f":"TODAY()+2","v":"2025-08-24"},"K"]
["60",{"$f":"TODAY()+1","v":"2025-08-23"},"K"]
["52",{"$f":"TODAY()","v":"2025-08-22"},"K"]
["51","2013-09-03","K"]
["42","2008-04-16","K"]
["30","2005-02-28","B"]
[]
[null,"KEY DATE"]
[null,{"$f":"VLOOKUP(Configurator!O4,A105:B113,2,0)","v":"2025-08-25"}]

{"sheet":"Date Drivers","index":7,"n_rows":155,"n_cols":31,"rows_kept":155,"cut":false,"hidden":true,"merged":[]}
["Key Date",null,{"$f":"VLOOKUP(Configurator!$O$4,LOOKUP!A105:B113,2,0)","v":"2025-08-25"}]
[null,null,"2002-03-20","2002-09-03","2002-10-04","2003-07-23","2003-07-24","2004-02-04","2004-02-09","2004-07-14","2004-08-26","2004-10-12","2004-11-01","2005-02-28","2005-09-05","2006-03-01","2006-05-03","2006-12-06","2007-04-06","2007-08-08","2007-12-12","2007-04-16","2012-05-06","2013-06-30","2013-09-03",{"$f":"TODAY()-6","v":"2025-08-16"},{"$f":"TODAY()","v":"2025-08-22"},{"$f":"TODAY()+1","v":"2025-08-23"},{"$f":"TODAY()+2","v":"2025-08-24"},{"$f":"TODAY()+3","v":"2025-08-25"},{"$f":"TODAY()+4","v":"2025-08-26"}]
["Hardware Options",1,"No analogue fitted (Not available)","No analogue fitted (Not available)","No analogue fitted (Not available)","No analogue fitted (Not available)","No analogue fitted (Not available)","Without CT Input","Without CT Input","Without CT Input","Without CT Input (Withdrawn)","Without CT Input (Withdrawn)","Without CT Input (Withdrawn)","Without CT Input (Withdrawn)","Without CT Input (Withdrawn)","Without CT Input (Withdrawn)","Without CT Input (Withdrawn)","Without CT Input (Withdrawn)","Without CT Input (Withdrawn)","Without CT Input (Withdrawn)","Without CT Input (Withdrawn)","Without CT Input (Withdrawn)","Without CT Input (Withdrawn)","Without CT Input (Withdrawn)","Without CT Input (Withdrawn)","Without CT Input (Withdrawn)","Without CT Input (Withdrawn)","Redundant Ethernet PRP/Failover, 2 multi-mode fibre ports, IEC 61850-9-2 LE Sampled Analogue Values - Process Bus Model","Without CT Input (Withdrawn)","Without CT Input (Withdrawn)","Without CT Input (Withdrawn)"]
[null,2,"With analogue input","With analogue input","With analogue input","With analogue input","With analogue input","With CT Input","With In = 1/5A CT Input","With In = 1/5A CT Input","With In = 1/5A CT Input","With In = 1/5A CT Input","With In = 1/5A CT Input","With In = 1/5A CT Input","With In = 1/5A CT Input","With In = 1/5A CT Input","With In = 1/5A CT Input","With In = 1/5A CT Input","With In = 1/5A CT Input","With In = 1/5A CT Input","With In = 1/5A CT Input","With In = 1/5A CT Input","With In = 1/5A CT Input","With In = 1/5A CT Input","With In = 1/5A CT Input","With In = 1/5A CT Input","With In = 1/5A CT Input"," ","With In = 1/5A CT Input","With In = 1/5A CT Input","With In = 1/5A CT Input"]
[null,3," "," "," "," "," "," "," "," "," "," "," "," "," "," "," ","Redundant Ethernet PRP/Failover, 2 multi-mode fibre ports, IEC 61850-9-2 LE Sampled Analogue Values - Process Bus Model","Redundant Ethernet PRP/Failover, 2 multi-mode fibre ports, IEC 61850-9-2 LE Sampled Analogue Values - Process Bus Model","Redundant Ethernet PRP/Failover, 2 multi-mode fibre ports, IEC 61850-9-2 LE Sampled Analogue Values - Process Bus Model","Redundant Ethernet PRP/Failover, 2 multi-mode fibre ports, IEC 61850-9-2 LE Sampled Analogue Values - Process Bus Model"," ","Redundant Ethernet PRP/Failover, 2 multi-mode fibre ports, IEC 61850-9-2 LE Sampled Analogue Values - Process Bus Model","Redundant Ethernet PRP/Failover, 2 multi-mode fibre ports, IEC 61850-9-2 LE Sampled Analogue Values - Process Bus Model","Redundant Ethernet PRP/Failover, 2 multi-mode fibre ports, IEC 61850-9-2 LE Sampled Analogue Values - Process Bus Model","Redundant Ethernet PRP/Failover, 2 multi-mode fibre ports, IEC 61850-9-2 LE Sampled Analogue Values - Process Bus Model","Redundant Ethernet PRP/Failover, 2 multi-mode fibre ports, IEC 61850-9-2 LE Sampled Analogue Values - Process Bus Model"," ","Redundant Ethernet PRP/Failover, 2 multi-mode fibre ports, IEC 61850-9-2 LE Sampled Analogue Values - Process Bus Model","Redundant Ethernet PRP/Failover, 2 multi-mode fibre ports, IEC 61850-9-2 LE Sampled Analogue Values - Process Bus Model","Redundant Ethernet PRP/Failover, 2 multi-mode fibre ports, IEC 61850-9-2 LE Sampled Analogue Values - Process Bus Model"]
[null,4," "," "," "," "," "," "," "," "," "," "," "," "," "," "," "," "," "," "," "," "," "," "," "," "," "," "," "," "," "]
[null,5," "," "," "," "," "," "," "," "," "," "," "," "," "," "," "," "," "," "," "," "," "," "," "," "," "," "," "," "," "]
[null,6," "," "," "," "," "," "," "," "," "," "," "," "," "," "," "," "," "," "," "," "," "," "," "," "," "," "," "," "," "]
[null,1,"*","*","*","*","*","*","*","*","*","*","*","*","*","*","*","*","*","*","*","*","*","*","*","*","*","C","*","*","*"]
[null,2,"1","1","1","1","1","1","1","1","1","1","1","1","1","1","1","1","1","1","1","1","1","1","1","1","1"," ","1","1","1"]
[null,3,"1","*"," "," "," "," "," "," "," "," "," "," "," "," "," "," "," "," "," "," "," "," "," "," "," "," "," "," "," "]
[null,4,"1","1","*","*","*","*","*","*","*","*","*","*","*","*","*","*","*","*","*","*","*","*","*","*","*","C","*","*","*"]
[null,5,"1","1","1","1","1","1","1","1","1","1","1","1","1","1","1","1","1","1","1","1","1","1","1","1","1","C","1","1","1"]
[null,6,"1","1",1,1,1,1,1,1,1,1,1,1,1,1,1,1,1,1,1,1,1,1,1,1,1,"C",1,1,1]
["Communications Options",1,"None","None","None","None","None","None","None","None","None","None","None","None","None","None","Standard - None","Standard - None","Standard - None","Standard - None","Standard - None","Standard - None","Standard - None","Standard - None","Standard - None","Ethernet (100Mbit/s)","Standard - None","Standard - None","Standard - None","Standard - None","Standard - None"]
[null,2," "," "," "," "," "," "," "," "," "," "," "," "," "," "," "," "," ","Ethernet (100Mbit/s)","Ethernet (100Mbit/s)","Ethernet (100Mbit/s)","Ethernet (100Mbit/s)","Ethernet (100Mbit/s)","Ethernet (100Mbit/s)","Redundant Ethernet RSTP, 2 multi-mode fibre ports + Modulated IRIG-B ","Ethernet (100Mbit/s)","Ethernet (100Mbit/s)","2nd Rear Port & intermicom (No Irig-B) - Withdrawn","2nd Rear Port & intermicom (No Irig-B) - Withdrawn","2nd Rear Port & intermicom (No Irig-B) - Withdrawn"]
[null,3," "," "," "," "," "," "," "," "," "," "," "," "," "," "," "," "," "," ","2nd Rear Port & intermicom (No Irig-B) - Withdrawn","2nd Rear Port & intermicom (No Irig-B) - Withdrawn","2nd Rear Port & intermicom (No Irig-B) - Withdrawn","2nd Rear Port & intermicom (No Irig-B) - Withdrawn","2nd Rear Port & intermicom (No Irig-B) - Withdrawn","Redundant Ethernet RSTP, 2 multi-mode fibre ports + Un-modulated IRIG-B ","2nd Rear Port & intermicom (No Irig-B) - Withdrawn","2nd Rear Port & intermicom (No Irig-B) - Withdrawn","Redundant Ethernet PRP/HSR/RSTP/Failover, 2 multi-mode fibre ports + Modulated/Un-Modulated IRIG-B (withdrawn)","Redundant Ethernet PRP/HSR/RSTP/Failover, 2 multi-mode fibre ports + Modulated/Un-Modulated IRIG-B (withdrawn)","Redundant Ethernet PRP/HSR/RSTP/Failover, 2 multi-mode fibre ports + Modulated/Un-Modulated IRIG-B (withdrawn)"]
[null,4," "," "," "," "," "," "," "," "," "," "," "," "," "," "," "," "," "," "," "," "," "," "," "," "," "," "," "," "," "]
[null,5," "," "," "," "," "," "," "," "," "," "," "," "," "," "," "," "," "," "," "," "," "," "," "," "," "," "," "," "," "]
[null,6," "," "," "," "," "," "," "," "," "," "," "," "," "," "," "," "," "," "," "," "," "," "," "," "," "," "," "," "," "]
[null,1,"1","1","1","1","1","1","1","1","1","1","1","1","1","1","1","1","1","1","1","1","1","1","1","6","1","1","1","1","1"]
[null,2,"1","1","1","1","1","1","1","1","1","1","1"," ","1"," "," "," "," ","6","6","6","6","6","6","J","6","6","*","*","*"]
[null,3,"1","1","1","1","1","1","1","1","1","1","1"," ","1"," "," "," "," "," ","*","*","*","*","*","K","*","*","*","*","*"]
[null,4,"1","1","1","1","1","1","1","1","1","1","1","1","1","1","1","1","1","1","1","1","1","1","1","","1","1","1","1","1"]
[null,5,"1","1","1","1","1","1","1","1","1","1","1","1","1","1","1","1","1","6","6","6","6","6","6","","6","6","*","*","*"]
[null,6,"1","1","1","1","1","1","1","1","1","1","1","1","1","1","1","1","1","6","*","*","*","*","*","","*","*","*","*","*"]
["Protocol Options",1,"None","K-bus or IEC 103 via KITZ274","None","None","None","None","None","None","None","None","None","Courier (K-Bus)","Courier (K-Bus)","Courier (K-Bus)","Courier (K-Bus)","Courier (K-Bus)","Courier (K-Bus)","Courier (K-Bus)","Courier (K-Bus)","Courier (K-Bus)","Courier (K-Bus)","Courier (K-Bus)","Courier (K-Bus)","Courier (K-Bus)","Courier (K-Bus)","Courier (K-Bus)","Courier (K-Bus)","Courier (K-Bus)","Courier (K-Bus)"]
[null,2," "," "," "," "," ","K-bus or IEC 103 via KITZ274","K-bus or IEC 103 via KITZ274","K-bus or IEC 103 via KITZ274","K-bus or IEC 103 via KITZ274","K-bus or IEC 103 via KITZ274","K-bus or IEC 103 via KITZ274","K-bus or IEC 103 via KITZ274","Modbus (Not available)","Modbus (Not available)","Modbus (Not available)","Modbus (Not available)","Modbus (Not available)","Modbus (Not available)","Modbus (Not available)","Modbus (Not available)","Modbus (Not available)","Modbus (Not available)","Modbus (Not available)","Modbus (Not available)","Modbus (Not available)","Modbus (Not available)","Modbus (Not available)","Modbus (Not available)","Modbus (Not available)"]
[null,3," "," "," "," "," "," "," "," "," "," "," ","IEC60870-5-103 via KITZ274 (Supplied as Courier. KITZ274 to be ordered)","IEC60870-5-103 via KITZ274 (Supplied as Courier. KITZ274 to be ordered)","IEC60870-5-103 via KITZ274 (Supplied as Courier. KITZ274 to be ordered)","IEC60870-5-103 via KITZ274 (Supplied as Courier. KITZ274 to be ordered)","IEC60870-5-103 via KITZ274 (Supplied as Courier. KITZ274 to be ordered)","IEC60870-5-103 via KITZ274 (Supplied as Courier. KITZ274 to be ordered)","IEC60870-5-103 via KITZ274 (Supplied as Courier. KITZ274 to be ordered)","IEC60870-5-103 via KITZ274 (Supplied as Courier. KITZ274 to be ordered)","IEC60870-5-103 via KITZ274 (Supplied as Courier. KITZ274 to be ordered)","IEC60870-5-103 via KITZ274 (Supplied as Courier. KITZ274 to be ordered)","IEC60870-5-103 via KITZ274 (Supplied as Courier. KITZ274 to be ordered)","IEC60870-5-103 via KITZ274 (Supplied as Courier. KITZ274 to be ordered)","IEC60870-5-103 via KITZ274 (Supplied as Courier. KITZ274 to be ordered)","IEC60870-5-103 via KITZ274 (Supplied as Courier. KITZ274 to be ordered)","IEC60870-5-103 via KITZ274 (Supplied as Courier. KITZ274 to be ordered)","IEC60870-5-103 via KITZ274 (Supplied as Courier. KITZ274 to be ordered)","IEC60870-5-103 via KITZ274 (Supplied as Courier. KITZ274 to be ordered)","IEC60870-5-103 via KITZ274 (Supplied as Courier. KITZ274 to be ordered)"]
[null,4," "," "," "," "," "," "," "," "," "," "," "," "," ","DNP3 (Not available)","DNP3 (Not available)","DNP3 (Not available)","DNP3 (Not available)","DNP3 (Not available)","DNP3 (Not available)","DNP3 (Not available)","DNP3 (Not available)","DNP3 (Not available)","DNP3 (Not available)","DNP3 (Not available)","DNP3 (Not available)","DNP3 (Not available)","DNP3 (Not available)","DNP3 (Not available)","DNP3 (Not available)"]
[null,5," "," "," "," "," "," "," "," "," "," "," "," "," ","UCA2 (Not available)","UCA2 (Not available)","UCA2 (Not available)","UCA2 (Not available)","UCA2 (Not available)","UCA2 (Not available)","UCA2 (Not available)","UCA2 (Not available)","UCA2 (Not available)","UCA2 (Not available)","UCA2 (Not available)","UCA2 (Not available)","UCA2 (Not available)","UCA2 (Not available)","UCA2 (Not available)","UCA2 (Not available)"]
[null,6," "," "," "," "," "," "," "," "," "," "," "," "," "," "," "," "," ","Additional IEC61850","Additional IEC61850","Additional IEC61850","Additional IEC61850","Additional IEC61850","Additional IEC61850","Additional IEC61850","Additional IEC61850","Additional IEC61850","Additional IEC61850","Additional IEC61850","Additional IEC61850"]
[null,7," "," "," "," "," "," "," "," "," "," "," "," "," "," "," "," "," "," "," "," "," "," "," "," "," "," "," "," "," "]
[null,1,"0","1","0","0","0","0","0","0","0","0","0","1",0,"1","1","1","1","1","1","1","1","1","1","1","1","1","1","1","1"]
[null,2,"0","1","0","0","0","0","0","1","1","1","1","1","1","*","*","*","*","*","*","*","*","*","*","*","*","*","*","*","*"]
[null,3,"0","1","0","0","0","0","0","1","1","1","1","1","1","1","1","1","1","1","1","1","1","1","1","1","1","1","1","1","1"]
[null,4,"0","1","0","0","0","0","0","1","1","1","1","1","1","*","*","*","*","*","*","*","*","*","*","*","*","*","*","*","*"]
[null,5,"0","1","0","0","0","0","0","1","1","1","1","1","1","*","*","*","*","*","*","*","*","*","*","*","*","*","*","*","*"]
[null,6,"0","1","0","0","0","0","0","1","1","1","1","1","1","*","*","*","*","6","6","6","6","6","6","6","6","6","6","6","6"]
[null,7,"0","1","0","0","0","0","0","1","1","1","1","1","1","*","*","*","*","*","*","*","*","*","*","*","*","*","*","*","*"]
["Software Version",1,"Phase 1 - (Not available)","Phase 1 - (Not available)","Phase 1 - (Not available)","Phase 1 - (Not available)","Phase 1 - (Not available)","Phase 1 - (Not available)","Phase 1 - (Not available)","Phase 1 - (Not available)","Phase 1 - (Not available)","Phase 1","Phase 1","Phase 1","Phase 1","Phase 1","Phase 1","Phase 1","Phase 1","Phase 1","Phase 1","Phase 1","Phase 1","Phase 1","Phase 1","Phase 1","Phase 1","Phase 1","Phase 1","Phase 1","Phase 1"]
[null,2,"Phase 1 - (Not available)","Phase 1 - (Not available)","Phase 1 - (Not available)","Phase 1 - (Not available)","Phase 1 - (Not available)","Phase 1 - (Not available)","Phase 1 - (Not available)","Phase 1 - (Not available)","Phase 1 - (Not available)","Phase 1","Phase 1","Phase 1","Phase 2","Phase 2","Phase 2","Phase 2","Phase 2","Phase 2/3","Phase 2/3","Phase 2/3","Phase 2/3","Phase 2/3","Phase 2/3","Phase 2/3","Phase 2/3","Phase 2/3","Phase 2/3","Phase 2/3","Phase 2/3"]
[null,1,"**","**","**","**","**","**","**","**","**","02","02","03","30","30","30","30","30",33,33,33,33,33,33,33,33,33,33,33,33]
[null,2,"**","**","**","**","**","**","**","**","**","02","02","03","31","31","31","32","33",40,40,40,40,40,40,40,40,40,40,40,40]
["Livery",null,"A","A","A","A","A","A","A","A","A","A","M","M","M","M","M","M","M","M","M","M","M","M","M","M","M","M","M","M","M"]
["Design Suffix",1,"Phase 1","Phase 1","Phase 1","Phase 1","Phase 1","Phase 1","Phase 1","Phase 1","Phase 1","Phase 1","Phase 1","Phase 1","Phase 1","Phase 1","Phase 1","Phase 1","Phase 1","Phase 1","Phase 1","Phase 1","Phase 1","Phase 1","Phase 1","Phase 1","Phase 1","Phase 1","Phase 1","Phase 1","Phase 1"]
[null,2,"Phase 1","Phase 1","Phase 1","Phase 1","Phase 1","Phase 1","Phase 1","Phase 1","Phase 1","Phase 1","Phase 1","Phase 1","Phase 2","Phase 2","Phase 2","Phase 2","Phase 2","Phase 2/3","Phase 2/3","Phase 2/3","Phase 2/3","Phase 2/3","Phase 2/3","Phase 2/3","Phase 2/3","Phase 2/3","Phase 2/3","Phase 2/3","Phase 2/3"]
[null,1,"B","B","B","B","B","B","B","B","B","B","B","B","B","B","B","B","B","B","B","B","B","B","B","B","B","B","B","B","B"]
[null,2,"K","K","K","K","K","K","K","K","K","K","K","K","K","K","K","K","K","K","K","K","K","K","K","K","K","K","K","K","K"]
["Language Options",1,"Fixed","Fixed","Fixed","Fixed","Fixed","Fixed","Fixed","Fixed","Fixed","Fixed","Fixed","Fixed","Fixed","Language","Language","Language","Language","Language","Language","Language","Language","Language","Language","Language","Language","Language","Language","Language","Language"]
[null,1,"Fixed","Fixed","Fixed","Fixed","Fixed","Fixed","Fixed","Fixed","Fixed","Fixed","Fixed","Fixed","Fixed","Multilingual - English, French, German, Spanish","Multilingual - English, French, German, Spanish","Multilingual - English, French, German, Spanish","Multilingual - English, French, German, Spanish","Multilingual - English, French, German, Spanish","Multilingual - English, French, German, Spanish","Multilingual - English, French, German, Spanish","Multilingual - English, French, German, Spanish","Multilingual - English, French, German, Spanish","Multilingual - English, French, German, Spanish","Multilingual - English, French, German, Spanish","Multilingual - English, French, German, Spanish","Multilingual - English, French, German, Spanish","Multilingual - English, French, German, Spanish","Multilingual - English, French, German, Spanish","Multilingual - English, French, German, Spanish"]
[null,2," "," "," "," "," "," "," "," "," "," "," "," "," ","Multilingual - English, French, German, Russian","Multilingual - English, French, German, Russian","Multilingual - English, French, German, Russian","Multilingual - English, French, German, Russian","Multilingual - English, French, German, Russian","Multilingual - English, French, German, Russian","Multilingual - English, French, German, Russian","Multilingual - English, French, German, Russian","Multilingual - English, French, German, Russian","Multilingual - English, French, German, Russian","","Multilingual - English, French, German, Russian","Multilingual - English, French, German, Russian","","Multilingual - English, French, German, Russian","Multilingual - English, French, German, Russian"]
[null,3," "," "," "," "," "," "," "," "," "," "," "," "," "," "," "," "," "," "," "," "," "," "," "," "," "," "," "," "," "]
[null,4," "," "," "," "," "," "," "," "," "," "," "," "," "," "," "," "," "," "," "," "," "," "," "," "," "," "," "," "," "]
[null,5," "," "," "," "," "," "," "," "," "," "," "," "," "," "," "," "," "," "," "," "," "," "," "," "," "," "," "," "," "]
[null,1,"1","1","1","1","1","1","1","1","1","1","1","1","1","0","0","0","0","0","0","0","0","0","0","0","0","0","0","0","0"]
[null,2,"1","1","1","1","1","1","1","1","1","1","1","1","1","5","5","5","5","5","5","5","5","5","5","0","5","5","0","5","5"]
[null,3,"1","1","1","1","1","1","1","1","1","1","1","1","1","5","5","5","5","5","5","5","5","5","5","0","5","5","0","5","5"]
[null,4,"1","1","1","1","1","1","1","1","1","1","1","1","1","5","5","5","5","5","5","5","5","5","5","0","5","5","0","5","5"]
[null,5,"1","1","1","1","1","1","1","1","1","1","1","1","1","5","5","5","5","5","5","5","5","5","5","0","5","5","0","5","5"]
["Master Text",1,"24 Digital Inputs / 21 Output relays","24 Digital Inputs / 21 Output relays","24 Digital Inputs / 21 Output relays","24 Digital Inputs / 21 Output relays","24 Digital Inputs / 21 Output relays","24 Digital Inputs / 21 Output relays","24 Digital Inputs / 21 Output relays","24 Digital Inputs / 21 Output relays","24 Digital Inputs / 21 Output relays","24 Digital Inputs / 21 Output relays","24 Digital Inputs / 21 Output relays","24 Digital Inputs / 21 Output relays","24 Digital Inputs / 21 Output relays","24 Digital Inputs / 21 Output relays","24 Digital Inputs / 21 Output relays","24 Digital Inputs / 21 Output relays","24 Digital Inputs / 21 Output relays","24 Digital Inputs / 21 Output relays","24 Digital Inputs / 21 Output relays","24 Digital Inputs / 21 Output relays","24 Digital Inputs / 21 Output relays","24 Digital Inputs / 21 Output relays","24 Digital Inputs / 21 Output relays","24 Digital Inputs / 21 Output relays","24 Digital Inputs / 21 Output relays","24 Digital Inputs / 21 Output relays","24 Digital Inputs / 21 Output relays","24 Digital Inputs / 21 Output relays","24 Digital Inputs / 21 Output relays"]
[null,2,"24 Digital Inputs / 21 Output relays","24 Digital Inputs / 21 Output relays","24 Digital Inputs / 21 Output relays","24 Digital Inputs / 21 Output relays","24 Digital Inputs / 21 Output relays","24 Digital Inputs / 21 Output relays","24 Digital Inputs / 21 Output relays","24 Digital Inputs / 21 Output relays","24 Digital Inputs / 21 Output relays","24 Digital Inputs / 21 Output relays","24 Digital Inputs / 21 Output relays","24 Digital Inputs / 21 Output relays","24 Digital Inputs / 21 Output relays","24 Digital Inputs / 21 Output relays","24 Digital Inputs / 21 Output relays","24 Digital Inputs / 21 Output relays","24 Digital Inputs / 16 Output relays","24 Digital Inputs / 16 Output relays","24 Digital Inputs / 16 Output relays","24 Digital Inputs / 16 Output relays","24 Digital Inputs / 16 Output relays","24 Digital Inputs / 16 Output relays","24 Digital Inputs / 16 Output relays","24 Digital Inputs / 16 Output relays","24 Digital Inputs / 16 Output relays","24 Digital Inputs / 16 Output relays","24 Digital Inputs / 16 Output relays","24 Digital Inputs / 16 Output relays","24 Digital Inputs / 16 Output relays"]
[null,1,"**","**","**","**","**","**","**","**","**","02","02","**","30","30","30","30","**","**","**","**","**","**","**","**","**","**","**","",""]
[null,2,"**","**","**","**","**","**","**","**","**","02","02","**","31","31","31","32","**","**","**","**","**","**","**","**","**","**","**","",""]
[null,3,null,null,null,null,null,null,null,null,null,null,null,"**",null,null,null,null,"51","51","51","51","51","51","51","51","51","51","51","",""]
[null,1,"**","**","**","**","**","**","**","**","**","02","02"," ","30","30","30","30","'41 - Withdrawn","'41 - Withdrawn","'41 - Withdrawn","'41 - Withdrawn","'41 - Withdrawn","'41 - Withdrawn","'41 - Withdrawn","'41 - Withdrawn","'41 - Withdrawn","'41 - Withdrawn","'41 - Withdrawn","",""]
[null,2,"**","**","**","**","**","**","**","**","**","02","02"," ","31","31","31","32","42 - Withdrawn","42 - Withdrawn","42 - Withdrawn","42 - Withdrawn","42 - Withdrawn","42 - Withdrawn","42 - Withdrawn","42 - Withdrawn","42 - Withdrawn","42 - Withdrawn","42 - Withdrawn","",""]
[null,3,null,null,null,null,null,null,null,null,null,null,null," ",null,null,null,null,"51","51","51","51","51","51","51","51","51","51","51","",""]
[null,null," "," "," "," "," "," "," "," "," "," "," ","**"," "," "," "," ","**","**","**","**","**","**","**","**","**","**","**","91","91"]
[null,null," "," "," "," "," "," "," "," "," "," "," "," "," "," "," "," ","52 - Withdrawn","52 - Withdrawn","52 - Withdrawn","52 - Withdrawn","52 - Withdrawn","52 - Withdrawn","52 - Withdrawn","52 - Withdrawn","52 - Withdrawn","52 - Withdrawn","52 - Withdrawn","",""]
[null,null," "," "," "," "," "," "," "," "," "," "," "," "," "," "," "," "," ","Central Networks Version"," "," ","Central Networks Version","Central Networks Version","Central Networks Version"," "," "," "," "," "," "]
[null,null," "," "," "," "," "," "," "," "," "," "," "," "," "," "," "," "," ","5"," "," ","5","5","5"," "," "," "," "," "," "]
[null,null,"A","A","A","A","A","A","A","A","A","A","A","A","A","A","A","A","A","5","A","A","5","5","5","A","A","A","A","A","A"]
[null,null,"21 Relay Outputs and 24 Status Inputs","21 Relay Outputs and 24 Status Inputs","21 Relay Outputs and 24 Status Inputs","21 Relay Outputs and 24 Status Inputs","21 Relay Outputs and 24 Status Inputs","21 Relay Outputs and 24 Status Inputs","21 Relay Outputs and 24 Status Inputs","21 Relay Outputs and 24 Status Inputs","21 Relay Outputs and 24 Status Inputs","21 Relay Outputs and 24 Status Inputs","21 Relay Outputs and 24 Status Inputs","21 Relay Outputs and 24 Status Inputs","21 Relay Outputs and 24 Status Inputs","21 Relay Outputs and 24 Status Inputs","21 Relay Outputs and 24 Status Inputs","21 Relay Outputs and 24 Status Inputs","16 Relays Outputs and 24 Status Inputs","16 Relays Outputs and 24 Status Inputs","16 Relays Outputs and 24 Status Inputs","16 Relays Outputs and 24 Status Inputs","16 Relays Outputs and 24 Status Inputs","16 Relays Outputs and 24 Status Inputs","16 Relays Outputs and 24 Status Inputs, OM1","16 Relays Outputs and 24 Status Inputs, OM1","16 Relays Outputs and 24 Status Inputs, OM1","16 Relays Outputs and 24 Status Inputs, OM1","16 Relays Outputs and 24 Status Inputs, OM1","16 Relays Outputs and 24 Status Inputs, OM1","16 Relays Outputs and 24 Status Inputs, OM1"]
[null,null,"","","","","","","","","","","","","","","","","","","","","16 Relays Outputs, 4 High Break and 16 Status Inputs","16 Relays Outputs, 4 High Break and 16 Status Inputs","16 Relays Outputs, 4 High Break and 16 Status Inputs, OM1","16 Relays Outputs, 4 High Break and 16 Status Inputs, OM1","16 Relays Outputs, 4 High Break and 16 Status Inputs, OM1","16 Relays Outputs, 4 High Break and 16 Status Inputs, OM1","16 Relays Outputs, 4 High Break and 16 Status Inputs, OM1","16 Relays Outputs, 4 High Break and 16 Status Inputs, OM1","16 Relays Outputs, 4 High Break and 16 Status Inputs, OM1"]
[null,null,"","","","","","","","","","","","","","","","","","","","","8 Relays Outputs, 4 High Break and 24 Status Inputs","8 Relays Outputs, 4 High Break and 24 Status Inputs","8 Relays Outputs, 4 High Break and 24 Status Inputs, OM1","8 Relays Outputs, 4 High Break and 24 Status Inputs, OM1","8 Relays Outputs, 4 High Break and 24 Status Inputs, OM1","8 Relays Outputs, 4 High Break and 24 Status Inputs, OM1","8 Relays Outputs, 4 High Break and 24 Status Inputs, OM1","8 Relays Outputs, 4 High Break and 24 Status Inputs, OM1","8 Relays Outputs, 4 High Break and 24 Status Inputs, OM1"]
[null,null,"","","","","","","","","","","","","","","","","","","","","8 Relays Outputs, 8 High Break and 16 Status Inputs","8 Relays Outputs, 8 High Break and 16 Status Inputs","8 Relays Outputs, 8 High Break and 16 Status Inputs, OM1","8 Relays Outputs, 8 High Break and 16 Status Inputs, OM1","8 Relays Outputs, 8 High Break and 16 Status Inputs, OM1","8 Relays Outputs, 8 High Break and 16 Status Inputs, OM1","8 Relays Outputs, 8 High Break and 16 Status Inputs, OM1","8 Relays Outputs, 8 High Break and 16 Status Inputs, OM1","8 Relays Outputs, 8 High Break and 16 Status Inputs, OM1"]
[null,null," "," "," "," "," "," "," "," "," "," "," "," "," "," "," "," "," "," "," "," "," "," "," "," "," "," "," "," ","16 Relays Outputs and 24 Status Inputs, OM1 or OM2"]
[null,null," "," "," "," "," "," "," "," "," "," "," "," "," "," "," "," "," "," "," "," "," "," "," "," "," "," "," "," ","16 Relays Outputs, 4 High Break and 16 Status Inputs, OM1 or OM2"]
[null,null," "," "," "," "," "," "," "," "," "," "," "," "," "," "," "," "," "," "," "," "," "," "," "," "," "," "," "," ","8 Relays Outputs, 4 High Break and 24 Status Inputs, OM1 or OM2"]
[null,null," "," "," "," "," "," "," "," "," "," "," "," "," "," "," "," "," "," "," "," "," "," "," "," "," "," "," "," ","8 Relays Outputs, 8 High Break and 16 Status Inputs, OM1 or OM2"]
[null,null,"A","A","A","A","A","A","A","A","A","A","A","A","A","A","A","A","A","A","A","A","A","A","A","A","A","A","A","A","A"]
[null,null,"","","","","","","","","","","","","","","","","","","","","B","B","B","B","B","B","B","B","B"]
[null,null,"","","","","","","","","","","","","","","","","","","","","C","C","C","C","C","C","C","C","C"]
[null,null,"","","","","","","","","","","","","","","","","","","","","D","D","D","D","D","D","D","D","D"]
[null,null,"A","A","A","A","A","A","A","A","A","A","A","A","A","A","A","A","A","A","A","A","D","D","D","D","D","D","D","D","E"]
[null,null,"A","A","A","A","A","A","A","A","A","A","A","A","A","A","A","A","A","A","A","A","D","D","D","D","D","D","D","D","F"]
[null,null,"A","A","A","A","A","A","A","A","A","A","A","A","A","A","A","A","A","A","A","A","D","D","D","D","D","D","D","D","G"]
[null,null,"A","A","A","A","A","A","A","A","A","A","A","A","A","A","A","A","A","A","A","A","D","D","D","D","D","D","D","D","H"]
[null,null,"30","30","30","30","30","30","30","30","30","30","30",30,"30","30","30","30","70","70","70","70","70","70","70","70","70","70","70","91","91"]
[null,null," "," "," "," "," "," "," "," "," "," "," "," "," "," "," "," ","53","53","53","53","53","53","53- Withdrawn","53- Withdrawn","53- Withdrawn","53- Withdrawn","53- Withdrawn","92 - Special for RTE and DEWA only","92 - Special for RTE and DEWA only"]
[null,null," "," "," "," "," "," "," "," "," "," "," "," "," "," "," "," ","60 - IEC 61850-9-2LE Interface Board","60 - IEC 61850-9-2LE Interface Board","60 - IEC 61850-9-2LE Interface Board","60 - Withdrawn","60 - Withdrawn","60 - Withdrawn","60 - Withdrawn","60 - Withdrawn","60 - Withdrawn","60 - Withdrawn","60 - Withdrawn","",""]
[]
[]
[]
[null,null,"30","30","30","30","30","30","30","30","30","30","30","*","30","30","30","30","70","70","70","70","70","70","70","70","70","70","70","91","91"]
[null,null,"30","30","30","30","30","30","30","30","30","30","30","30","30","30","30",30,"53","53","53","53","53","53","**","**","**","**","**","92","92"]
[null,null,30,30,30,30,30,30,30,30,30,30,30,30,30,30,30,30,"60","60","60","**","**","**","**","**","**","**","**","92","92"]
[]
[]
[]
[null,null," "," "," "," "," "," "," "," "," "," "," "," "," "," "," "," "," "," "," "," ","Redundant Ethernet RSTP, 2 multi-mode fibre ports + Modulated IRIG-B ","Redundant Ethernet RSTP, 2 multi-mode fibre ports + Modulated IRIG-B ","Redundant Ethernet RSTP, 2 multi-mode fibre ports + Modulated IRIG-B ","Redundant Ethernet PRP/HSR, 2 multi-mode fibre ports + Modulated IRIG-B ","Redundant Ethernet RSTP, 2 multi-mode fibre ports + Modulated IRIG-B ","Redundant Ethernet RSTP, 2 multi-mode fibre ports + Modulated IRIG-B ","Redundant Ethernet PRP/HSR/RSTP/Failover, 2 copper ports RJ45 + Modulated/Un-Modulated IRIG-B (withdrawn)","Redundant Ethernet PRP/HSR/RSTP/Failover, 2 copper ports RJ45 + Modulated/Un-Modulated IRIG-B (withdrawn)","Redundant Ethernet PRP/HSR/RSTP/Failover, 2 copper ports RJ45 + Modulated/Un-Modulated IRIG-B (withdrawn)"]
[null,null," "," "," "," "," "," "," "," "," "," "," "," "," "," "," "," "," "," "," "," ","Redundant Ethernet RSTP, 2 multi-mode fibre ports + Un-modulated IRIG-B ","Redundant Ethernet RSTP, 2 multi-mode fibre ports + Un-modulated IRIG-B ","Redundant Ethernet RSTP, 2 multi-mode fibre ports + Un-modulated IRIG-B ","Redundant Ethernet PRP/HSR, 2 multi-mode fibre ports + Un-modulated IRIG-B","Redundant Ethernet RSTP, 2 multi-mode fibre ports + Un-modulated IRIG-B ","Redundant Ethernet RSTP, 2 multi-mode fibre ports + Un-modulated IRIG-B ","Redundant Ethernet PRP/HSR/RSTP/Failover, 1 copper port RJ45 + 1 multi-mode fibre port + Modulated/Un-Modulated IRIG-B (withdrawn)","Redundant Ethernet PRP/HSR/RSTP/Failover, 1 copper port RJ45 + 1 multi-mode fibre port + Modulated/Un-Modulated IRIG-B (withdrawn)","Redundant Ethernet PRP/HSR/RSTP/Failover, 1 copper port RJ45 + 1 multi-mode fibre port + Modulated/Un-Modulated IRIG-B (withdrawn)"]
[null,null," "," "," "," "," "," "," "," "," "," "," "," "," "," "," "," "," "," "," "," ","Redundant Ethernet PRP/HSR, 2 multi-mode fibre ports + Modulated IRIG-B ","Redundant Ethernet PRP/HSR, 2 multi-mode fibre ports + Modulated IRIG-B ","Redundant Ethernet PRP/HSR, 2 multi-mode fibre ports + Modulated IRIG-B ","Redundant Ethernet PRP/HSR/RSTP/Failover, 2 multi-mode fibre ports + Modulated/Un-Modulated IRIG-B ","Redundant Ethernet PRP/HSR, 2 multi-mode fibre ports + Modulated IRIG-B ","Redundant Ethernet PRP/HSR, 2 multi-mode fibre ports + Modulated IRIG-B ","","Single Ethernet 1 LC Duplex port + Universal IRIG-B + 1588",""]
[null,null," "," "," "," "," "," "," "," "," "," "," "," "," "," "," "," "," "," "," "," ","Redundant Ethernet PRP/HSR, 2 multi-mode fibre ports + Un-modulated IRIG-B","Redundant Ethernet PRP/HSR, 2 multi-mode fibre ports + Un-modulated IRIG-B","Redundant Ethernet PRP/HSR, 2 multi-mode fibre ports + Un-modulated IRIG-B","Redundant Ethernet PRP/HSR/RSTP/Failover, 2 copper ports RJ45 + Modulated/Un-Modulated IRIG-B ","Redundant Ethernet PRP/HSR, 2 multi-mode fibre ports + Un-modulated IRIG-B","Redundant Ethernet PRP/HSR, 2 multi-mode fibre ports + Un-modulated IRIG-B","","Redundant Ethernet PRP/HSR/RSTP/Failover 2 RJ45 + Universal IRIG-B + 1588",""]
[null,null," "," "," "," "," "," "," "," "," "," "," "," "," "," "," "," "," "," "," "," ","","","Redundant Ethernet PRP/HSR/RSTP/Failover, 2 multi-mode fibre ports + Modulated/Un-Modulated IRIG-B (withdrawn)","Redundant Ethernet PRP/HSR/RSTP/Failover, 1 copper port RJ45 + 1 multi-mode fibre port + Modulated/Un-Modulated IRIG-B ","","","","Redundant Ethernet PRP/HSR/RSTP/Failover 2 LC Duplex ports + Universal IRIG-B + 1588 ",""]
[null,null," "," "," "," "," "," "," "," "," "," "," "," "," "," "," "," "," "," "," "," ","","","Redundant Ethernet PRP/HSR/RSTP/Failover, 2 copper ports RJ45 + Modulated/Un-Modulated IRIG-B (withdrawn)","","","","","",""]
[null,null," "," "," "," "," "," "," "," "," "," "," "," "," "," "," "," "," "," "," ","","","","Redundant Ethernet PRP/HSR/RSTP/Failover, 1 copper port RJ45 + 1 multi-mode fibre port + Modulated/Un-Modulated IRIG-B (withdrawn)","","","","","",""]
[null,null," "," "," "," "," "," "," "," "," "," "," "," "," "," "," "," "," "," "," "," "," "," ","",""," "," ","","",""]
[null,null," "," "," "," "," "," "," "," "," "," "," "," "," "," "," "," "," "," "," "," "," "," ","",""," "," "," "," "," "]
[null,null," "," "," "," "," "," "," "," "," "," "," "," "," "," "," "," "," "," "," "," "," "," ","",""," "," "," "," "," "]
[null,null," "," "," "," "," "," "," "," "," "," "," "," "," "," "," "," "," "," "," "," "," "," ","",""," "," "," "," "," "]
[null,null,null,null,null,null,null,null,null,null,null,null,null,null,null,null,null,null,null,null,null," "," "," "," "," "," "," "," "," "," "]
[null,null,{"$f":"C26","v":"1"},"1","1","1","1","1","1","1","1","1","1","1","1","1","1","1","1","6","*",{"$f":"V26","v":"*"},"J","J","J","N","J","J","*","*","*"]
[null,null,{"$f":"C114","v":"1"},"1","1","1","1","1","1","1","1","1","1","1","1","1","1","1","1","6","*",{"$f":"V114","v":"*"},"K","K","K","P","K","K","*","*","*"]
[null,null,"1","1","1","1","1","1","1","1","1","1","1","1","1","1","1","1","1","6","*",{"$f":"V115","v":"*"},"N","N","N","*","N","N","*","U","*"]
[null,null,"1","1","1","1","1","1","1","1","1","1","1","1","1","1","1","1","1","6","*",{"$f":"V116","v":"*"},"P","P","P","*","P","P","*","W","*"]
[null,null,"1","1","1","1","1","1","1","1","1","1","1","1","1","1","1","1","1","6","*",{"$f":"V117","v":"*"},"","","*","*","P","P","*","Y","*"]
[null,null,"1","1","1","1","1","1","1","1","1","1","1","1","1","1","1","1","1","6","*",{"$f":"V118","v":"*"},"","","*","","","","","",""]
[null,null," "," "," "," "," "," "," "," "," "," "," "," "," "," "," "," "," "," "," "," ","","","*","","","","","",""]
[null,null," "," "," "," "," "," "," "," "," "," "," "," "," "," "," "," "," "," "," "," ","","","","","","","","",""]
[null,null,null,null,null,null,null,null,null,null,null,null," "," "," ",null,null,null,null,null,null,null,"","","","","",""," "," "," "]
[null,null,null,null,null,null,null,null,null,null,null,null," "," "," ",null,null,null,null,null,null,null,"","","","","",""," "," "," "]
[null,null,null,null,null,null,null,null,null,null,null,null," "," "," ",null,null,null,null,null,null,null,"","","","","",""," "," "," "]
[null,null,null,null,null,null,null,null,null,null,null,null,null,null,null,null,null,null,null,null,null,null," "," "," "," "," "," "," "," "," "]
[null,null," "," "," "," "," "," "," ",{"$f":"J119","v":"1"},"1","1","1","1","1","1","1","1","1",{"$f":"T38","v":"*"},{"$f":"U38","v":"*"},{"$f":"V38","v":"*"},"J","J","J","N","J","J","*","*","*"]
[null,null," "," "," "," "," "," "," ",{"$f":"J126","v":"1"},"1","1","1","1","1","1","1","1","1",{"$f":"T126","v":"*"},{"$f":"U126","v":"*"},"*","K","K","K","P","K","K","*","*","*"]
[null,null," "," "," "," "," "," "," ","1","1","1","1","1","1","1","1","1","1",{"$f":"T127","v":"*"},"*","*","N","N","N","*","N","N","*","U","*"]
[null,null," "," "," "," "," "," "," ","1","1","1","1","1","1","1","1","1","1",{"$f":"T128","v":"*"},"*","*","P","P","P","*","P","P","*","W","*"]
[null,null," "," "," "," "," "," "," ","1","1","1","1","1","1","1","1","1","1",{"$f":"T129","v":"*"},"*","*","P","P","*","*","P","P","*","Y","*"]
[null,null," "," "," "," "," "," "," ","1","1","1","1","1","1","1","1","1","1",{"$f":"T130","v":"*"},"*","*","","","*","","","","","",""]
[null,null," "," "," "," "," "," "," "," "," "," "," "," "," "," "," "," "," "," "," "," ","","","*","","","","","",""]
[null,null," "," "," "," "," "," "," "," "," "," "," "," "," "," "," "," "," "," "," "," ","","","","","","","","",""]
[null,null," "," "," "," "," "," "," "," "," "," "," "," "," "," "," "," "," "," "," "," ","","","","","","","","",""]
[null,null," "," "," "," "," "," "," "," "," "," "," "," "," "," "," "," "," "," "," "," ","","","","","",""," "," "," "]
[null,null,null,null,null,null,null,null,null,null,null,null,null,"","",null,null,null,null,null,null,null,"","","","","",""," "," "," "]
[null,null,null,null,null,null,null,null,null,null,null,null,null,"",null,null,null,null,null,null,null,null," "," "," "," "," "," "," "," "," "]
[null,null,"Flush Panel Mounting, with Harsh Environment Coating ","Flush Panel Mounting, with Harsh Environment Coating ","Flush Panel Mounting, with Harsh Environment Coating ","Flush Panel Mounting, with Harsh Environment Coating ","Flush Panel Mounting, with Harsh Environment Coating ","Flush Panel Mounting, with Harsh Environment Coating ","Flush/Panel Mounting with Harsh Env.Coating, White Front Panel - Withdrawn","Flush/Panel Mounting with Harsh Env.Coating, White Front Panel - Withdrawn","Flush/Panel Mounting with Harsh Env.Coating, White Front Panel - Withdrawn","Flush/Panel Mounting with Harsh Env.Coating, White Front Panel - Withdrawn","Flush/Panel Mounting with Harsh Env.Coating, White Front Panel - Withdrawn","Flush/Panel Mounting with Harsh Env.Coating, White Front Panel - Withdrawn","Flush/Panel Mounting with Harsh Env.Coating, White Front Panel - Withdrawn","Flush/Panel Mounting with Harsh Env.Coating, White Front Panel - Withdrawn","Flush/Panel Mounting with Harsh Env.Coating, White Front Panel - Withdrawn","Flush/Panel Mounting with Harsh Env.Coating, White Front Panel - Withdrawn","Flush/Panel Mounting with Harsh Env.Coating, White Front Panel - Withdrawn","Flush/Panel Mounting with Harsh Env.Coating, White Front Panel - Withdrawn","Flush/Panel Mounting with Harsh Env.Coating, White Front Panel - Withdrawn","Flush/Panel Mounting with Harsh Env.Coating, White Front Panel - Withdrawn","Flush/Panel Mounting with Harsh Env.Coating, White Front Panel - Withdrawn","Flush/Panel Mounting with Harsh Env.Coating, White Front Panel - Withdrawn","Flush/Panel Mounting with Harsh Env.Coating, White Front Panel - Withdrawn","Flush/Panel Mounting with Harsh Env. Coating, with USB Port, Black and Silver Front Panel","Flush/Panel Mounting with Harsh Env.Coating, White Front Panel - Withdrawn","Flush/Panel Mounting with Harsh Env.Coating, White Front Panel - Withdrawn","Flush/Panel Mounting with Harsh Env. Coating, with USB Port, Black and Silver Front Panel","Flush/Panel Mounting with Harsh Env. Coating, with USB Port, Black and Silver Front Panel","Flush/Panel Mounting with Harsh Env. Coating, with USB Port, Black and Silver Front Panel"]
[null,null,"Flush Panel Mounting, with harsh environment coating ","Flush Panel Mounting, with harsh environment coating ","Flush Panel Mounting, with harsh environment coating ","Flush Panel Mounting, with harsh environment coating ","Flush Panel Mounting, with harsh environment coating ","Flush Panel Mounting, with harsh environment coating ","Flush Panel Mounting, with harsh environment coating ","Flush Panel Mounting, with harsh environment coating ","Flush Panel Mounting, with harsh environment coating ","Flush Panel Mounting, with harsh environment coating ","Flush Panel Mounting, with harsh environment coating ","","","","","","","","","","","","Flush/Panel Mounting with Harsh Env. Coating, with USB Port, Black and Silver Front Panel","Flush/Panel Mounting with Harsh Env. Coating, with USB Port, Black and Silver Front Panel","Flush/Panel Mounting with Harsh Env. Coating, with USB Port, Black and Silver Front Panel","Flush/Panel Mounting with Harsh Env. Coating, with USB Port, Black and Silver Front Panel","Flush/Panel Mounting with Harsh Env. Coating, with USB Port, Black and Silver Front Panel","Flush/Panel Mounting with Harsh Env. Coating, with USB Port, Black and Silver Front Panel","Flush/Panel Mounting with Harsh Env. Coating, with USB Port, Black and Silver Front Panel"]
[null,null,"*","*","*","*","*","*","*","*","*","*","*","*","*","*","*","*","*","*","*","*","*","*","*","S","*","*","S","S","S"]
[null,null,"P","P","P","P","P","P","P","P","P","P","P","*","'*","'*","'*","'*","'*","'*","'*","'*","'*","'*","S","S","S","S","S","S","S"]
[]
[]
[]
[]
[]
[]
[]
[]
[]
[]
[]
[]
[null,null,null,null,null,null,null,null,null,null,null,null,null,null,null,null,null,null,null,null,null,null,null,null,null,null,null,null,null,"M","M"]
[null,null,null,null,null,null,null,null,null,null,null,null,null,null,null,null,null,null,null,null,null,null,null,null,null,null,null,null,null,"",""]